Cogmind - Beta 15 @@@ ROGUE MODE // 2025.05.07 @ 05:34:54 Player: Savant Result: Defending 0bPrime! Performance ------------- Evolutions (7) 3500 Regions Visited (24) 4800 Robots Destroyed (329) 1645 Value Destroyed (17117) 17117 Prototype IDs (134) 2680 Alien Tech Used (3) 600 Bonus (26594) 26594 TOTAL SCORE: 56936 Bonus ------- High Alert Combat Kills 1167 Follower Combat Kills 4003 Forged Quantum Companion 2000 Awakened Behemoth Slayer 1000 Network Hubs Disabled 400 Delivered SUBCON Basin 2000 Registered with UFD 300 Met Optimus in HQ 500 Met Imprinter 300 Built Enhanced Grunts 300 A7 Reached Mainframe 300 Met R17 at Cetus 500 Met Optimus at Protoforge 1000 Completed Drillbomb Mission10000 Win 3000 Friendly Fire -176 Cogmind --------- Core Integrity 529/1300 Matter 300/300 Energy 79/100 System Corruption 3% Temperature Cool (0) Movement Core (50) Location 0bPrime Parts ------- > --- POWER (3) -------- (None) > --- PROPULSION (7) --- (None) > --- UTILITY (9) ------ (None) > --- WEAPON (2) ------- Superquantum Companion > --- INVENTORY (5) ---- Improved Quantum Reactor Layered Heavy Armor Plating Concept Antimissile System Fusion Bomb Launcher Peak State ------------ > --- POWER ------------ Improved Quantum Reactor Improved Quantum Reactor Hybrid Graviton Reactor > --- PROPULSION ------- Biometal Leg Biometal Leg Overtuned Huge Scrapsphere Overtuned Huge Scrapsphere Centrium Wheel > --- UTILITY ---------- 0bPrime Scrap Suit Huge Storage Unit Tactical Coordination Suite Weapon Mount Experimental Core Analyzer Advanced Kinecellerator Centrium Medium Armor Plating Advanced Remote Force Field > --- WEAPON ----------- Concept XC Strikerail Superquantum Companion > --- INVENTORY -------- Light Antimatter Reactor Light Antimatter Reactor Improved Quantum Reactor Improved Quantum Reactor Improved Quantum Reactor Experimental VSS Leg Experimental Coolant Injector Improved Energy Well Advanced Energy Well Nanoactuators Layered Heavy Armor Plating Centrium Light Armor Plating Centrium Light Armor Plating Centrium Medium Armor Plating Graphene Brace Experimental Thermal Defense Suite Concept Antimissile System Overtuned Railgun Concept XC Strikerail Concept XC Strikerail Fusion Bomb Launcher CR-A16's Behemoth Slayer Experimental Jetlance [Rating: 187] Favorites ----------- Power Meta Core Engine Subdweller Power Source Power Core Meta Core Reactor Light Antimatter Reactor Propulsion Myomer Leg Treads Improved Medium Treads Leg Myomer Leg Wheel Overtuned Scrapsphere Flight Unit Experimental Surge Thruster Utility Huge Storage Unit Device Advanced Heat Sink Storage Huge Storage Unit Processor Core Analyzer Hackware Advanced System Shield Protection Centrium Medium Armor Plating Weapon Quantum Companion Energy Gun Overtuned Beamcaster Energy Cannon Heavy Phase Cannon Ballistic Gun Concept XC Strikerail Ballistic Cannon Mini Assault Cannon Launcher Mini Grenade Launcher Special Weapon Improved Remote Datajack Impact Weapon Heavy Flail Slashing Weapon Quantum Companion Piercing Weapon CR-A16's Pointy Stick Special Melee Weapon Improved Datajack Build | -11 -10 -10 -8 -8 -6 -6 -6 -6 -5 -5 -5 -5 -5 -5 -4 -4 -4 -4 -4 -4 -4 -3 -3 -3 ------- Run | Yrd Mat Sub Rec Scr Fac Low Low Zio Pro Fac Was Fac Upp Upp Fac Was Fac Ext Cet Arc Hub Res Qua Frg Slots Evolved 14 | . . . . . 8 . . . . 2 . . . . 2 . . . . . . 2 . . Power 2 | . . . . . . . . . . 1 . . . . . . . . . . . 1 . . Propulsion 5 | . . . . . 2 . . . . 1 . . . . 1 . . . . . . 1 . . Utility 7 | . . . . . 6 . . . . . . . . . 1 . . . . . . . . . Weapon . | . . . . . . . . . . . . . . . . . . . . . . . . . Parts Attached 363 | 7 6 17 5 11 48 7 . 6 2 20 3 20 13 2 27 1 26 20 4 2 25 26 11 54 Power 57 | 1 . 5 . 3 . . . . . 2 1 2 1 1 5 . 7 2 . . 4 7 3 13 Engine 8 | 1 . 5 . 1 . . . . . . . . 1 . . . . . . . . . . . Core 9 | . . . . 2 . . . . . 2 . 2 . 1 1 . 1 . . . . . . . Reactor 40 | . . . . . . . . . . . 1 . . . 4 . 6 2 . . 4 7 3 13 Propulsion 88 | 2 2 3 2 1 13 1 . 2 . 4 . 5 4 . 6 1 7 4 1 . 10 7 . 13 Treads 24 | 1 1 . 2 . 10 . . 1 . 4 . 4 . . . . . . 1 . . . . . Leg 49 | . . . . 1 . . . . . . . 1 4 . 6 1 7 4 . . 10 7 . 8 Wheel 14 | 1 1 3 . . 3 1 . 1 . . . . . . . . . . . . . . . 4 Hover . | . . . . . . . . . . . . . . . . . . . . . . . . . Flight 1 | . . . . . . . . . . . . . . . . . . . . . . . . 1 Utility 156 | 2 1 3 1 2 25 5 . 4 1 10 1 11 7 1 14 . 10 10 1 1 7 12 6 21 Device 93 | 1 . 2 1 2 14 4 . 2 . 3 1 7 6 . 8 . 8 6 . 1 5 6 5 11 Storage 6 | 1 1 1 . . . . . . . . . . . . 1 . . 1 . . . 1 . . Processor 17 | . . . . . 1 1 . 1 . 2 . 2 . . 1 . 1 . . . . 1 1 6 Hackware 13 | . . . . . 4 . . . 1 2 . . . . 2 . . . . . 1 3 . . Protection 27 | . . . . . 6 . . 1 . 3 . 2 1 1 2 . 1 3 1 . 1 1 . 4 Artifact . | . . . . . . . . . . . . . . . . . . . . . . . . . Weapon 62 | 2 3 6 2 5 10 1 . . 1 4 1 2 1 . 2 . 2 4 2 1 4 . 2 7 Energy Gun 11 | 1 2 1 1 . 3 . . . 1 . . . . . . . . . 1 . . . . 1 Energy Cannon 18 | . . 4 1 2 3 . . . . 3 . . . . 1 . 1 1 . . 2 . . . Ballistic Gun 7 | 1 . . . . . . . . . . . . 1 . 1 . . . 1 . . . . 3 Ballistic Cannon 1 | . . . . . 1 . . . . . . . . . . . . . . . . . . . Launcher 4 | . . . . . 1 1 . . . . . . . . . . 1 . . . . . . 1 Special Weapon 8 | . 1 . . . 2 . . . . . 1 . . . . . . 1 . . 1 . 1 1 Impact Weapon 2 | . . 1 . 1 . . . . . . . . . . . . . . . . . . . . Slashing Weapon 5 | . . . . 1 . . . . . 1 . 2 . . . . . . . . . . 1 . Piercing Weapon 3 | . . . . . . . . . . . . . . . . . . 1 . . 1 . . 1 Special Melee Weapon 3 | . . . . 1 . . . . . . . . . . . . . 1 . 1 . . . . Unidentified Prototypes 21 | . . . . 1 1 . . 1 . . . . . . . . . . 3 . . 1 3 11 Corrupted Parts 1 | . . . . . . . . 1 . . . . . . . . . . . . . . . . System Corruption 3 | . . . . . . . . 3 . . . . . . . . . . . . . . . . Parts Lost 99 | . . 4 . . 13 . . . . 5 . 13 2 3 5 . 10 9 . . 5 4 . 26 Power 18 | . . 1 . . . . . . . 1 . 2 1 1 1 . 1 2 . . 2 1 . 5 Propulsion 34 | . . 1 . . 6 . . . . 1 . 3 . . 2 . 5 3 . . . 2 . 11 Utility 38 | . . 2 . . 5 . . . . 2 . 6 1 1 2 . 3 4 . . 3 1 . 8 Weapon 9 | . . . . . 2 . . . . 1 . 2 . 1 . . 1 . . . . . . 2 Highest Loss Streak 7 | . . 2 . . 3 . . . . 2 . 5 1 3 2 . 4 6 . . 3 2 . 7 To Critical Strikes 1 | . . . . . . . . . . . . 1 . . . . . . . . . . . . Average Backups 20 | 4 12 9 10 21 20 21 22 21 22 22 23 22 19 23 23 23 22 23 22 23 23 23 23 18 Power . | . 1 . . . . . . . . . . . . . 1 1 . 1 1 1 1 . 1 1 Propulsion 4 | 2 6 3 3 4 3 5 6 5 6 5 4 4 5 6 4 7 4 5 5 6 4 2 2 1 Utility 8 | . 1 1 1 5 7 7 7 8 8 9 11 11 8 11 11 10 10 9 9 8 9 12 15 11 Weapon 4 | . 3 3 4 7 6 4 4 4 5 4 4 4 3 4 3 3 4 4 4 4 5 4 3 3 Tool/Special . | . . . . . . . . . . . . . . . . . . . . . . . . . Unused Backups 114 | . . 7 . 12 14 . 1 4 2 7 . 7 1 2 6 1 6 1 11 2 13 6 3 8 Power 8 | . . . . . . . . . . . . . . . 1 . . . 2 1 2 1 . 1 Propulsion 24 | . . 4 . 2 4 . . . . 2 . . 1 . 1 1 3 . 1 . 3 1 . 1 Utility 51 | . . 1 . 6 6 . . 2 1 1 . 3 . 2 4 . 3 1 6 1 4 2 3 5 Weapon 23 | . . 2 . 3 4 . . 1 1 2 . 2 . . . . . . 2 . 3 2 . 1 Tool/Special 8 | . . . . 1 . . 1 1 . 2 . 2 . . . . . . . . 1 . . . Average Slot Usage (%) 93 | . 100 99 96 79 85 93 94 92 93 92 90 89 97 94 99 100 99 98 98 99 99 98 99 88 Engine 2 | . 14 13 14 10 . . . . . . . . 3 . . . . . . . . . . . Core 3 | . . . . 2 5 5 5 5 5 9 7 7 7 10 7 . 1 . . . . . . . Reactor 4 | . . . . . . . . . . . 2 2 . . 2 10 8 9 10 10 9 12 14 12 Treads 6 | . 15 . . . 16 22 22 16 16 18 15 13 2 . . . . . . . . . . . Leg 13 | . . . . . . . . . . . . 1 24 27 30 31 30 30 30 31 31 32 33 17 Wheel 8 | . 12 27 27 25 5 4 5 10 11 10 10 9 . . . . . . . . . . . 8 Device 21 | . 14 13 14 14 25 30 32 31 33 18 9 9 20 21 16 15 19 20 21 25 26 22 22 22 Storage 6 | . 14 14 14 12 5 5 5 5 5 5 5 5 5 5 4 5 5 5 5 5 5 4 4 3 Processor 3 | . . . . . . . . . . 3 10 10 14 11 7 5 5 5 5 5 5 5 4 5 Hackware 3 | . . . . . 3 2 . . . 6 10 9 5 5 7 10 10 10 10 5 2 3 4 . Protection 4 | . . . . . 5 5 5 6 5 6 5 5 . 5 11 10 5 4 5 5 7 3 4 4 Energy Gun 2 | . 11 1 2 . 6 3 5 4 4 4 5 2 . . . . . . . . . . . . Energy Cannon 4 | . . 24 21 . 2 7 5 4 5 5 4 3 . . . 2 3 . . . . 3 2 . Slashing Weapon 5 | . . . . 2 5 5 5 5 5 5 5 8 10 5 6 5 5 9 9 9 9 4 3 4 Peak Build Rating 187 | 8 11 33 33 46 92 100 100 99 96 126 127 131 117 109 134 134 140 138 132 132 148 165 165 187 Average Rating 103 | 5 9 31 27 23 81 96 97 93 95 116 119 123 111 108 122 132 132 126 128 130 141 157 162 168 On Entrance 94 | . 8 10 33 13 46 92 97 97 99 96 122 120 93 110 109 134 128 131 126 130 131 117 163 165 Naked Turns . | . . . . . . . . . . . . . . . . . . . . . . . . . Heaviest Build 175 | 15 51 103 103 107 126 124 122 128 125 138 127 130 102 120 130 130 142 137 135 137 150 157 162 175 Greatest Support 186 | 20 40 24 42 24 120 120 120 120 16 130 16 84 112 109 141 141 145 145 140 140 158 186 183 183 Greatest Overweight (x) 45 | 1 4 4 4 4 10 15 1 15 7 8 7 12 12 1 1 . 1 1 1 45 1 . . 9 Average Overweight (x) 2 | . 3 3 3 3 3 . . 6 7 7 7 7 1 . . . . . . 9 . . . 2 Largest Inventory Capacity 25 | 8 20 25 25 25 25 25 25 25 25 25 25 25 25 25 25 25 25 25 25 25 25 25 25 25 Average Capacity 24 | 6 18 24 25 24 25 25 25 25 25 25 25 25 25 25 24 25 25 25 25 25 25 25 25 24 Most Carried 25 | 8 16 25 25 25 25 25 25 25 25 25 25 25 25 25 25 25 25 25 25 25 25 25 25 25 Average Carried 23 | 4 12 24 21 22 24 24 24 24 24 24 24 23 20 24 24 24 23 24 23 24 24 24 24 21 Final Capacity 25 | 8 20 25 25 25 25 25 25 25 25 25 25 25 25 25 25 25 25 25 25 25 25 25 25 5 Final Carried 25 | 8 16 24 15 25 25 25 25 25 25 25 25 21 25 25 25 25 25 25 22 25 23 25 25 5 Class Distribution -------------------- 37% | Scavenger-Mutant 29% | Mutant 15% | Hacker-Mutant 9% | Commander-Mutant Dominant Class ---------------- Mutant | -10/Materials Mutant | -10/Subcaves Mutant | -8/Recycling Mutant | -8/Scraptown Scavenger-Mutant | -6/Factory Mutant | -6/Lower Caves Mutant | -6/Lower Caves Scavenger-Mutant | -6/Zion Scavenger-Mutant | -5/Proximity Caves Scavenger-Mutant | -5/Factory Hacker-Mutant | -5/Waste Hacker-Mutant | -5/Factory Gladiator | -5/Upper Caves Mutant | -5/Upper Caves Scavenger-Mutant | -4/Factory Hacker-Mutant | -4/Waste Hacker-Mutant | -4/Factory Commander-Mutant | -4/Extension Commander-Mutant | -4/Cetus Commander-Mutant | -4/Archives Scavenger-Gladiator | -4/Hub_04(d) Scavenger-Mutant | -3/Research Scavenger-Mutant | -3/Quarantine Scavenger-Mutant | -3/Protoforge Resources | -11 -10 -10 -8 -8 -6 -6 -6 -6 -5 -5 -5 -5 -5 -5 -4 -4 -4 -4 -4 -4 -4 -3 -3 -3 ----------- Run | Yrd Mat Sub Rec Scr Fac Low Low Zio Pro Fac Was Fac Upp Upp Fac Was Fac Ext Cet Arc Hub Res Qua Frg Matter Collected 10203 | 294 131 472 88 135 1124 158 131 99 130 697 78 676 524 77 803 194 815 595 195 56 656 319 196 1560 Remotely 55 | . . . . . . . . . . . . . 55 . . . . . . . . . . . Salvage Created 17438 | 98 180 491 276 . 2230 113 220 . 205 1557 . 1817 336 197 1503 240 1542 1214 18 109 1118 961 243 2770 Parts 841 | 8 13 21 12 . 86 9 7 . 13 80 . 88 10 9 69 4 71 45 2 12 58 41 19 164 Haulers Intercepted 2 | . . . . . . . . . . . . 1 . . 1 . . . . . . . . . Recyclers Shooed 1 | . . . . . . . . . . . . . . . . . . 1 . . . . . . Parts Field Recycled . | . . . . . . . . . . . . . . . . . . . . . . . . . Retrieved Matter . | . . . . . . . . . . . . . . . . . . . . . . . . . Parts Self-Destructed 103 | . . 13 . . . 3 7 . 67 . . . 6 7 . . . . . . . . . . Prevented . | . . . . . . . . . . . . . . . . . . . . . . . . . Kills | -11 -10 -10 -8 -8 -6 -6 -6 -6 -5 -5 -5 -5 -5 -5 -4 -4 -4 -4 -4 -4 -4 -3 -3 -3 ------- Run | Yrd Mat Sub Rec Scr Fac Low Low Zio Pro Fac Was Fac Upp Upp Fac Was Fac Ext Cet Arc Hub Res Qua Frg Combat Hostiles Destroyed 256 | . 6 12 1 . 35 4 6 . 4 23 . 30 5 3 20 1 24 15 . . 13 7 3 44 Melee 131 | . . . . . 16 . 1 . 2 18 . 14 4 3 13 . 12 12 . . 5 4 3 24 Guns 38 | . 6 1 . . 14 . 2 . 1 . . . . . . . . . . . . . . 14 Cannons 47 | . . 10 1 . 2 . 2 . 1 5 . 9 1 . 4 1 1 1 . . 6 1 . 2 AOE 28 | . . . . . 2 4 . . . . . 7 . . . . 10 1 . . . . . 4 Classes Destroyed 31 | 2 3 1 2 . 8 1 . . . . . 2 . . . 1 3 . 1 . . . . 7 Worker 9 | . . . . . 2 . . . . 2 . . . . . . 2 . . . 2 1 . . Builder 13 | . . . 1 . 2 . . . . 5 . . . . . . 3 . . . 2 . . . Tunneler 4 | 2 . . . . . . . . . . . . . . 1 . 1 . . . . . . . Hauler 2 | . . . . . . . . . . . . 1 . . 1 . . . . . . . . . Recycler 13 | 1 . . 2 . 2 . . . . . . 1 . . 1 . 2 1 . . 1 2 . . Mechanic 3 | . . . . . . . . . . . . . . . . . 1 . . . . . . 2 Operator 5 | . . . . . 1 . . . . . . . . . . . . 1 . 3 . . . . Drone 8 | . . . . . . . . . . . . . . . . . . . . . . . . 8 Watcher 21 | . 2 . . . 1 . . . . 1 . 3 . . 4 . 2 . . . 1 5 1 1 Swarmer 35 | . 3 2 . . . 4 4 . 2 . . 2 . . 4 . 11 2 . . . . . 1 Grunt 77 | . 3 3 . . 19 . . . 1 11 . 12 2 2 2 . 7 4 . . 4 3 . 4 Brawler 3 | . . . . . 1 . . . . . . 1 . 1 . . . . . . . . . . Duelist 3 | . . . . . . . . . . . . . . . . . 1 . . . . . . 2 Protector 3 | . . . . . . . . . . . . . . . . . . . . . . . . 3 Sentry 18 | . . . 1 . 1 . 1 . . 4 . 1 1 . . . . 4 . . 1 1 . 3 Demolisher 4 | . . . . . 1 . . . . . . 2 . . . . . . . . . 1 . . Specialist 7 | . . . . . 2 . . . . . . 1 . . . . . . . . 1 . . 3 Hunter 23 | . . . . . 3 . . . . 1 . 4 2 . 5 . 2 2 . . . 2 . 2 Programmer 51 | . . . . . 7 . 1 . . 7 . 6 . . 9 . 3 2 . . 6 . 3 7 Heavy 1 | . . . . . . . . . . . . 1 . . . . . . . . . . . . Behemoth 4 | . . . . . 1 . . . 1 . . . . . . . . 1 . . 1 . . . Compactor 1 | . . . . . . . . . . . . . . . . 1 . . . . . . . . Decapitator 5 | . . . . . . . . . . . . . . . . . . . . . . . . 5 Overlord 1 | . . . . . . . . . . . . . . . . . . . . . . . . 1 Striker 1 | . . . . . . . . . . . . . . . . . . . . . . . . 1 Executioner 2 | . . . . . . . . . . . . . . . . . . . . . . . . 2 Alpha 7 2 | . . . . . . . . . . . . . . . . . . . . . . . . 2 Subdweller 7 | . . 7 . . . . . . . . . . . . . . . . . . . . . . Scrapper 1 | . . . . . . . . . . . . . . . . . . . . . . . . 1 Scrapoid 1 | . . . . . . 1 . . . . . . . . . . . . . . . . . . Scraphulk 1 | . . . . . . . . . . . . . . . . . 1 . . . . . . . Botcube 1 | . . . . . . . . . . . . . . . . . . . 1 . . . . . Best Kill Streak 10 | 3 3 2 2 . 6 4 3 . 3 8 . 6 2 3 6 1 9 3 . 3 3 4 2 10 Combat Bots Only 10 | . 3 2 1 . 5 4 3 . 3 5 . 6 2 3 5 1 7 3 . . 3 3 2 10 Max Kills in Single Turn 9 | 1 1 1 1 . 2 2 1 . 1 2 . 3 1 2 1 1 9 1 1 1 1 1 1 3 Gunslinging . | . . . . . . . . . . . . . . . . . . . . . . . . . Exploded 7 | . . . . . 1 2 . . . . . 3 . . . . 7 1 . . . . . 3 Melee 2 | . . . . . 1 . 1 . 1 1 . 1 1 2 1 . 1 1 . . 1 1 1 1 Uniques/NPCs Destroyed . | . . . . . . . . . . . . . . . . . . . . . . . . . Combat | -11 -10 -10 -8 -8 -6 -6 -6 -6 -5 -5 -5 -5 -5 -5 -4 -4 -4 -4 -4 -4 -4 -3 -3 -3 -------- Run | Yrd Mat Sub Rec Scr Fac Low Low Zio Pro Fac Was Fac Upp Upp Fac Was Fac Ext Cet Arc Hub Res Qua Frg Hostile Shots Fired 1949 | . 16 46 2 . 351 11 37 . 16 170 . 292 30 17 148 . 168 106 2 3 137 64 37 296 Missed 574 | . 3 9 . . 101 4 8 . 1 32 . 64 7 5 73 . 70 25 2 1 51 14 17 87 Deflected 45 | . . . . . . . . . . 6 . 8 1 . 2 . 4 5 1 . 2 3 . 13 Hits 1375 | . 13 37 2 . 250 7 29 . 15 138 . 228 23 12 75 . 98 81 . 2 86 50 20 209 Melee 25 | . . . . . . . . . . . . 2 . 3 . . . . . . 1 . . 19 Projectile 1350 | . 13 37 2 . 250 7 29 . 15 138 . 226 23 9 75 . 98 81 . 2 85 50 20 190 AOE 18 | . . . . . 11 . . . . . . . . . . . . . . . 1 1 . 5 Critical Strikes 67 | . 1 1 . . 4 . 1 . . 6 . 9 2 . 1 . 8 6 1 . 4 2 . 21 Actively Blocked 29 | . . . . . . . . . . 2 . . . . . . 2 5 . . 4 1 . 15 Part Disruptions 4 | . . . . . . 3 . . . . . . . . . . . . . . . . 1 . Damage Taken 27534 | . 178 915 27 . 4422 335 335 . 330 2637 . 4071 406 311 1310 . 1931 1646 25 35 1463 1129 418 5610 Core 3355 | . 50 139 . . 623 48 11 . 49 309 . 512 70 . 108 . 270 250 7 . 198 163 50 498 Absorbed by Shields 1351 | . . . . . . . . . . . . . . . . . . . 6 13 331 72 74 855 Redirected to Shielding 355 | . . . . . . . . . . 51 . 152 . 31 78 . 43 . . . . . . . Ignored by Resistances 153 | . . . . . . . . . . . . . . . . . . . . . . . . 153 Regen/Repaired (Parts) 2569 | . . . . . 261 . 30 1136 . 30 . 10 . . 212 . 251 . . . . 413 214 12 Core Remaining (%) 35 | 100 . . . 24 . . . . 14 . . . . 10 . . . . . . 27 . . 40 Volleys Fired 445 | 8 28 47 5 . 79 6 26 . 11 28 1 10 . . 22 20 33 11 . . 7 31 7 65 Largest 2 | 2 2 2 2 . 2 2 2 . 2 2 1 2 . . 1 1 1 1 . . 1 1 1 1 Hottest 190 | 70 100 160 160 . 180 165 190 . 190 190 7 190 . . 90 90 90 81 . . 105 90 90 52 Shots Fired 586 | 16 43 84 8 . 128 7 35 . 15 39 1 12 . . 22 20 36 11 . . 7 31 7 64 Gun 267 | 16 30 14 . . 99 . 26 . 5 10 . 2 . . 4 . . . . . . . . 61 Cannon 256 | . . 70 8 . 24 5 9 . 10 28 . 6 . . 11 5 26 11 . . 7 31 5 . Launcher 14 | . . . . . 3 2 . . . . . 3 . . . . 3 . . . . . . 3 Special 49 | . 13 . . . 2 . . . . 1 1 1 . . 7 15 7 . . . . . 2 . Kinetic 109 | 8 15 9 . . 9 . . . . . . 3 . . 4 . . . . . . . . 61 Thermal 401 | 8 28 75 8 . 102 4 31 . 15 37 . 8 . . 11 5 26 . . . 7 31 5 . Explosive 8 | . . . . . . 2 . . . . . . . . . . 3 . . . . . . 3 Electromagnetic 32 | . . . . . 15 1 4 . . 1 . . . . . . . 11 . . . . . . Robot Hit Streak 33 | 7 9 11 7 . 15 . 7 . 9 10 2 6 . . 8 20 5 2 . . 1 7 1 33 Robot Miss Streak 5 | 1 2 3 . . 5 2 2 . . 4 . 1 . . 3 1 3 2 . . 2 3 . 1 Penetration Max 1 | . . . . . . . . . . . . . . . . . . . . . . . . 1 Secondary Targets 1 | . . . . . 1 . . . . . . . . . . . . . . . . . . . Max Gunslinging Chain 1 | . . . . . 1 . . . . . . . . . . . . . . . . . . . Autonomous 62 | . . . . . . . . . . 5 . 16 1 . 9 1 4 3 1 . 10 5 2 5 Shots Hit Robots 839 | 12 21 49 6 3 166 . 17 . 15 68 1 48 11 4 59 20 49 52 7 8 20 35 7 161 Core Hits 415 | 4 11 13 4 . 68 7 4 . 6 30 . 48 6 4 24 1 46 23 1 2 17 17 4 75 Critical Kills 5 | . . 1 . . . . 1 . . . . . . . . . . . . . 1 . . 2 Critical Parts Destroyed 4 | . . . . . . . . . . . . . . . . . . . . . . . . 4 Critical Strikes 53 | . . 1 . . 15 . 3 . 2 2 . 6 . . . . . 3 . . 1 . 2 18 Burn 12 | . . . . . 8 . 2 . 2 . . . . . . . . . . . . . . . Meltdown 3 | . . 1 . . . . 1 . . . . . . . . . . . . . 1 . . . Destroy 6 | . . . . . . . . . . . . . . . . . . . . . . . . 6 Corrupt 1 | . . . . . 1 . . . . . . . . . . . . . . . . . . . Impale 1 | . . . . . . . . . . . . . . . . . . 1 . . . . . . Melee Attacks 1009 | . . 5 . 3 126 2 11 . 8 123 . 74 21 7 99 2 111 80 22 18 65 64 34 134 Impact 9 | . . 5 . . 4 . . . . . . . . . . . . . . . . . . . Slashing 985 | . . . . . 122 2 11 . 8 123 . 74 21 7 99 2 111 75 22 13 63 64 34 134 Piercing 7 | . . . . . . . . . . . . . . . . . . 5 . . 2 . . . Sneak Attacks 71 | . . . . 3 7 . . . . 6 . 1 . . 7 . 9 3 7 8 5 3 1 11 Combat Hostiles 10 | . . . . . 1 . . . . . . . . . 3 . 1 1 . . . . 1 3 Follow-up Attacks 10 | . . . . . 1 . . . . 3 . 1 . . 1 . . . . . . 1 . 3 Damage Inflicted 50307 | 152 276 1183 166 . 6280 334 545 . 538 4328 . 4973 688 207 4060 257 5295 3414 957 523 2107 2393 655 10976 Guns 4654 | 152 276 139 . . 1592 . 243 . 156 125 . 32 . . 41 . . . . . . . . 1898 Cannons 8773 | . . 1044 166 . 539 74 205 . 104 640 . 1479 96 . 937 222 413 415 94 . 959 765 182 439 Explosions 5021 | . . . . . 688 260 . . . . . 908 . . . . 2024 79 . . . . . 1062 Melee 31816 | . . . . . 3455 . 97 . 278 3547 . 2554 592 207 3082 35 2858 2899 863 523 1148 1628 473 7577 Ramming 43 | . . . . . 6 . . . . 16 . . . . . . . 21 . . . . . . Kinetic 3308 | 77 123 81 . . 682 . . . . . . 406 . . 41 . . . . . . . . 1898 Thermal 6673 | 75 153 1102 166 . 1714 38 422 . 260 307 . 538 . . 164 139 1125 79 . . 76 315 . . Explosive 2329 | . . . . . . 260 . . . . . . . . . . 1007 . . . . . . 1062 Electromagnetic 802 | . . . . . 423 36 26 . . 36 . 101 . . . . . 180 . . . . . . Impact 42 | . . . . . 42 . . . . . . . . . . . . . . . . . . . Slashing 31627 | . . . . . 3413 . 97 . 278 3547 . 2554 592 207 3082 35 2858 2752 863 523 1148 1628 473 7577 Piercing 147 | . . . . . . . . . . . . . . . . . . 147 . . . . . . Phasic 5336 | . . . . . . . . . . 422 . 1374 96 . 773 83 305 235 94 . 883 450 182 439 Highest Corruption 12 | . 1 1 1 . 8 8 5 5 . 12 12 12 9 9 3 3 9 11 6 6 12 . 3 6 Average Corruption 4 | . 1 1 1 . 3 4 4 4 . 6 12 6 9 9 2 3 6 9 6 4 1 . 2 2 Corruption Purged 35 | . . . . . 1 5 . . . . . 12 . . . . . 5 . 6 . . . 6 Corruption Blocked . | . . . . . . . . . . . . . . . . . . . . . . . . . Effects 442 | . 8 13 5 . 38 21 24 . . 31 10 32 32 12 18 2 52 54 15 5 23 . 6 41 Message Errors 115 | . 2 3 1 . 12 9 7 . . 9 4 9 5 4 7 1 10 11 1 1 8 . . 11 Matter Fused 117 | . 1 7 1 . 6 6 8 . . 6 3 7 12 3 3 1 11 17 5 . 7 . 4 9 Heat Flow Errors 51 | . 1 2 . . 1 1 . . . 2 1 6 3 . 3 . 9 6 2 2 5 . . 7 Energy Discharges 47 | . 1 . . . 7 2 2 . . 4 . 4 2 1 1 . 7 6 2 . 1 . 2 5 Parts Rejected 6 | . . . . . 1 . . . . . . 1 1 . 1 . . 1 . . . . . 1 Parts Fused 5 | . . . . . . . 1 . . . . 1 . . . . . . . 1 1 . . 1 Data Loss (minor) 53 | . 2 . 1 . 3 1 4 . . 8 2 2 5 3 1 . 10 6 1 . 1 . . 3 Data Loss (major) 31 | . 1 1 1 . 5 1 1 . . 2 . 2 3 1 1 . 2 4 3 1 . . . 2 Misfires 6 | . . . 1 . 2 . . . . . . . . . . . 3 . . . . . . . Alerts 9 | . . . . . 1 1 . . . . . . 1 . 1 . . 3 1 . . . . 1 Weapon Failures 2 | . . . . . . . 1 . . . . . . . . . . . . . . . . 1 Overload Shots . | . . . . . . . . . . . . . . . . . . . . . . . . . Overflow Damage 3373 | . . 30 . . 286 . 28 . . 515 . 195 14 . 489 . 342 216 20 130 240 246 29 593 Projectiles 536 | . . 30 . . 22 . 28 . . 133 . 89 . . 142 . 17 34 . . 4 8 29 . Explosions 125 | . . . . . 31 . . . . . . . . . . . 66 . . . . . . 28 Melee 2712 | . . . . . 233 . . . . 382 . 106 14 . 347 . 259 182 20 130 236 238 . 565 Knockbacks 1 | . . . . . 1 . . . . . . . . . . . . . . . . . . . Impact 1 | . . . . . 1 . . . . . . . . . . . . . . . . . . . Kinetic . | . . . . . . . . . . . . . . . . . . . . . . . . . Secondary . | . . . . . . . . . . . . . . . . . . . . . . . . . Self-Inflicted Damage 235 | . . . . . 56 41 . . . . . 28 . . . . 110 . . . . . . . Shots 7 | . . . . . 1 2 . . . . . 2 . . . . 2 . . . . . . . Rammed 2 | . . . . . 2 . . . . . . . . . . . . . . . . . . . Targets Rammed 5 | . . . . . 3 . . . . 1 . . . . . . . 1 . . . . . . Kicked 1 | . . . . . . . . . . . . . . . . . . 1 . . . . . . Crushed 2 | . . . . . 1 . . . . 1 . . . . . . . . . . . . . . Highest Temperature 324 | 54 240 255 168 . 324 6 . . 90 230 240 230 180 . 253 220 274 270 251 255 236 279 112 221 Average Temperature 77 | 23 40 76 57 . 77 6 . . 42 87 132 76 81 . 85 106 77 91 102 117 88 80 46 113 Received Heat Transfer 3798 | . 63 246 9 . 1086 . 36 . 72 540 . 588 45 81 51 . 282 214 . . 84 68 12 321 Effects 2 | . . . . . . . . . . . . . . . . . . . . 1 . 1 . . Energy Bleed 2 | . . . . . . . . . . . . . . . . . . . . 1 . 1 . . Siege Activations . | . . . . . . . . . . . . . . . . . . . . . . . . . Martial Activations . | . . . . . . . . . . . . . . . . . . . . . . . . . Shielding Activations . | . . . . . . . . . . . . . . . . . . . . . . . . . Robots Disrupted 3 | . . . . . 1 . . . . . . . . . . . . 2 . . . . . . Combat Hostiles 3 | . . . . . 1 . . . . . . . . . . . . 2 . . . . . . Robots Corrupted 1 | . . . . . 1 . . . . . . . . . . . . . . . . . . . Combat Hostiles 1 | . . . . . 1 . . . . . . . . . . . . . . . . . . . Parts Fried 2 | . . . . . . 2 . . . . . . . . . . . . . . . . . . Impact Corruptions . | . . . . . . . . . . . . . . . . . . . . . . . . . Robots Melted 3 | . . 1 . . . . 1 . . . . . . . . . . . . . 1 . . . Combat Hostiles 2 | . . 1 . . . . 1 . . . . . . . . . . . . . . . . . Parts Melted 20 | 1 . 3 . . 13 . 1 . . . . . . . . . . 1 . . 1 . . . Heat Transferred 10302 | 222 407 1554 222 . 4050 37 850 . 600 385 . 411 . . 148 148 811 50 . . 74 333 . . Parts Sabotaged 4 | . . . . . . . . . . . . . . . . . . . . . 4 . . . Parts Stolen . | . . . . . . . . . . . . . . . . . . . . . . . . . Parts Stripped 49 | . . . . . . . . . . . . . . . 20 . 7 . . . 7 15 . . Power Chain Reactions 2 | . . . . . 1 . . . . . . . . . . . . 1 . . . . . . Alert | -11 -10 -10 -8 -8 -6 -6 -6 -6 -5 -5 -5 -5 -5 -5 -4 -4 -4 -4 -4 -4 -4 -3 -3 -3 ------- Run | Yrd Mat Sub Rec Scr Fac Low Low Zio Pro Fac Was Fac Upp Upp Fac Was Fac Ext Cet Arc Hub Res Qua Frg Maximum Alert Level 4 | . . . . . 2 . . . . 1 . 3 . . 1 . 4 2 2 1 3 2 1 1 Low Security (%) 60 | 100 100 . 100 . 69 . . . . 81 100 22 . . 98 100 9 68 . 87 17 . 99 73 Level 1 16 | . . . . . 11 . . . . 18 . 32 . . 1 . 18 1 76 12 8 62 . 26 Level 2 13 | . . . . . 18 . . . . . . 36 . . . . 39 29 23 . 15 37 . . Level 3 7 | . . . . . . . . . . . . 7 . . . . 18 . . . 58 . . . Level 4 1 | . . . . . . . . . . . . . . . . . 13 . . . . . . . Level 5 . | . . . . . . . . . . . . . . . . . . . . . . . . . High Security . | . . . . . . . . . . . . . . . . . . . . . . . . . Max Security . | . . . . . . . . . . . . . . . . . . . . . . . . . Peak Influence 1191 | 15 71 . 53 . 644 . . . . 319 110 1002 . . 217 65 1191 512 457 262 969 465 203 379 Initial 461 | . . . 33 . . . . . . . 110 . . . 96 65 . 438 270 147 4 461 188 1 Average 235 | 1 15 . 6 . 182 . . . . 126 59 374 . . 83 13 590 184 363 65 635 385 20 140 Influence Increases 14096 | 15 228 135 101 . 1443 90 170 . 90 805 . 2537 140 70 842 2 1814 1092 405 225 2050 412 275 1155 Destroy 0b10 Robot/C 6320 | . 120 100 20 . 800 80 120 . 80 460 . 920 100 60 400 . 680 520 160 80 760 140 60 660 Destroy 0b10 Robot/NC 515 | 15 10 . 15 . 40 . . . . 40 . 50 . . 35 . 90 30 10 15 50 40 5 70 Destroy Leader 1212 | . 24 20 . . 232 10 20 . 10 102 . 202 10 10 100 . 108 44 . . 186 50 12 72 Allied During Kill 1855 | . . . . . 23 . . . . . . 456 . . . . 34 340 170 95 737 . . . Trap Triggered on 0b10 70 | . . . . . . . . . . . . . . . . . . . . . 70 . . . Successful Hack 385 | . 17 . 5 . 68 . . . . . . 19 . . 15 . 22 17 . . 30 36 88 68 Select Force Hacks 120 | . 30 . 60 . . . . . . . . . . . . . . . . . . 30 . . Disable Machine 945 | . . . . . 30 . . . . 30 . 360 . . 75 . 270 60 15 15 45 . 45 . Destroy Structure 1669 | . 12 . 1 . 70 . . . . 128 . 320 . . 142 2 460 66 50 20 172 86 50 90 Partial Spotted 135 | . 15 . . . 15 . . . . . . . . . . . 30 . . . . . . 75 Lose Combat Pursuer 870 | . . 15 . . 165 . 30 . . 45 . 210 30 . 75 . 120 15 . . . 30 15 120 Influence Decreases 13746 | 15 211 83 170 . 799 647 257 . 90 488 317 1535 790 268 810 188 919 1504 519 580 1185 956 607 808 Entered New Map 2596 | . . 9 36 . . 239 17 . . . 207 . 372 68 58 121 . 457 213 222 10 418 147 2 Time Decay 7550 | 15 211 64 134 . 559 398 230 . 90 428 110 555 398 170 612 47 505 537 286 298 582 498 269 554 Lost Part 952 | . . 10 . . 130 . . . . 50 . 130 20 30 50 . 100 90 . . 50 40 . 252 Lost Ally 1056 | . . . . . 110 10 10 . . 10 . 400 . . . 20 14 120 20 60 282 . . . Purge Threat 1592 | . . . . . . . . . . . . 450 . . 90 . 300 300 . . 261 . 191 . Squads Dispatched 114 | . 1 . . . 27 . . . 1 13 . 13 . . 10 . 15 2 . . 14 6 2 10 Investigation 47 | . 1 . . . 6 . . . 1 7 . 6 . . 6 . 10 . . . 2 4 . 4 Extermination 31 | . . . . . 8 . . . . 3 . 3 . . 4 . 3 . . . 5 1 2 2 Reinforcement 19 | . . . . . 5 . . . . 1 . 1 . . . . 1 2 . . 4 1 . 4 Assault 10 | . . . . . 1 . . . . 2 . 3 . . . . 1 . . . 3 . . . Garrison 7 | . . . . . 7 . . . . . . . . . . . . . . . . . . . Intercept . | . . . . . . . . . . . . . . . . . . . . . . . . . Searches Triggered . | . . . . . . . . . . . . . . . . . . . . . . . . . Construction Impeded 2 | . . . . . 2 . . . . . . . . . . . . . . . . . . . Haulers Reinforced 3 | . . . . . . . . . . . . 1 . . . . . . . . 1 1 . . Active Scanning Responses . | . . . . . . . . . . . . . . . . . . . . . . . . . Cargo Convoy Interrupts 2 | . . . . . . . . . . 1 . 1 . . . . . . . . . . . . Stealth | -11 -10 -10 -8 -8 -6 -6 -6 -6 -5 -5 -5 -5 -5 -5 -4 -4 -4 -4 -4 -4 -4 -3 -3 -3 --------- Run | Yrd Mat Sub Rec Scr Fac Low Low Zio Pro Fac Was Fac Upp Upp Fac Was Fac Ext Cet Arc Hub Res Qua Frg Distress Signals 31 | . 1 . . . 3 . . . . 2 . 6 . . 2 . 2 3 2 . 2 3 . 5 Communications Jammed 149 | . . . . . . . . . . . . . . . 7 . 25 21 . . 11 41 . 44 Distress Signals 128 | . . . . . . . . . . . . . . . 6 . 24 21 . . 11 41 . 25 Times Spotted 537 | . 10 13 1 . 55 4 8 . 13 40 . 66 10 3 39 3 48 34 7 3 45 18 6 111 Peak Tracking Total 13 | . 3 4 1 . 7 4 3 . 6 6 . 10 3 3 6 1 7 8 5 2 10 3 2 13 Tactical Retreats 36 | . . 1 . . 6 . 2 . . 3 . 7 2 . 3 . 4 1 . . . 2 1 4 Traps | -11 -10 -10 -8 -8 -6 -6 -6 -6 -5 -5 -5 -5 -5 -5 -4 -4 -4 -4 -4 -4 -4 -3 -3 -3 ------- Run | Yrd Mat Sub Rec Scr Fac Low Low Zio Pro Fac Was Fac Upp Upp Fac Was Fac Ext Cet Arc Hub Res Qua Frg Traps Triggered 25 | . 2 5 . . 4 2 . . . 2 . 2 . . 2 . 1 . . . 2 2 . 1 Indirectly . | . . . . . . . . . . . . . . . . . . . . . . . . . Trap Hack Attempts . | . . . . . . . . . . . . . . . . . . . . . . . . . Triggered . | . . . . . . . . . . . . . . . . . . . . . . . . . Disarmed . | . . . . . . . . . . . . . . . . . . . . . . . . . Reprogrammed 13 | . . . . . . . . . . . . . . . . . . . . . 13 . . . Reused 9 | . . 2 . . . . . . . . . . . . . . . . . . 7 . . . Traps Extracted . | . . . . . . . . . . . . . . . . . . . . . . . . . Installed 2 | . . 2 . . . . . . . . . . . . . . . . . . . . . . Triggered 7 | . . . . . . . . . . . . . . . . . . . . . 7 . . . Most Traps Carried 1 | . . 1 . . . . . . . . . . . . . . . . . . . . . . Machines | -11 -10 -10 -8 -8 -6 -6 -6 -6 -5 -5 -5 -5 -5 -5 -4 -4 -4 -4 -4 -4 -4 -3 -3 -3 ---------- Run | Yrd Mat Sub Rec Scr Fac Low Low Zio Pro Fac Was Fac Upp Upp Fac Was Fac Ext Cet Arc Hub Res Qua Frg Machines Disabled 67 | . . 2 . . 2 . . . 1 2 . 24 . . 5 . 18 5 1 1 3 . 3 . Max in Single Turn 10 | . . 1 . . 1 . . . 1 1 . 5 . . 4 . 10 1 1 . 1 . 1 . Garrison Access 13 | . . . . . 1 . . . . 4 . 1 . . 2 . 2 . . . 2 . 1 . Network Hub 2 | . . . . . . . . . . . . . . . . . . . . . 2 . . . Machines Repaired . | . . . . . . . . . . . . . . . . . . . . . . . . . Machines Dismantled 3 | . . . . . . . . . . . . . . . . . . 2 1 . . . . . Machines Sabotaged . | . . . . . . . . . . . . . . . . . . . . . . . . . Overloaded Fab Kills . | . . . . . . . . . . . . . . . . . . . . . . . . . Hacking | -11 -10 -10 -8 -8 -6 -6 -6 -6 -5 -5 -5 -5 -5 -5 -4 -4 -4 -4 -4 -4 -4 -3 -3 -3 --------- Run | Yrd Mat Sub Rec Scr Fac Low Low Zio Pro Fac Was Fac Upp Upp Fac Was Fac Ext Cet Arc Hub Res Qua Frg Machines Accessed 139 | . 9 3 3 2 18 . 1 . 1 11 . 9 1 . 17 . 19 9 1 . 12 8 9 6 Terminals 61 | . 8 . 1 . 8 . . . 1 . . 1 . . 4 . 7 9 1 . 10 . 7 4 Fabricators 9 | . . . . . 1 . . . . 1 . 2 . . 2 . 2 . . . . 1 . . Repair Stations 6 | . . . . . 1 . . . . . . . . . 1 . 1 . . . . 2 1 . Recycling Units 34 | . 1 . 2 . 6 . . . . 6 . 4 . . 5 . 6 . . . . 3 . 1 Scanalyzers 9 | . . . . . 1 . . . . 1 . 1 . . 2 . 1 . . . . 2 . 1 Garrison Access 13 | . . . . . 1 . . . . 3 . 1 . . 3 . 2 . . . 2 . 1 . Total Hacks 425 | . 22 3 10 6 47 . 1 . 3 20 . 27 1 . 75 . 69 22 2 . 46 22 30 19 Successful 229 | . 12 3 6 6 22 . 1 . 3 14 . 17 1 . 47 . 28 8 . . 23 12 15 11 Failed 195 | . 10 . 4 . 25 . . . . 6 . 10 . . 27 . 41 14 2 . 23 10 15 8 Catastrophic 36 | . 1 . 2 . 4 . . . . . . 2 . . 2 . 10 2 2 . 7 3 . 1 Database Lockouts 1 | . . . . . . . . . . . . . . . 1 . . . . . . . . . Manual 187 | . 19 . 6 . 30 . . . . 12 . 10 . . 26 . 35 4 1 . 19 7 6 12 Terminals 232 | . 21 . 3 . 23 . . . 3 . . 7 . . 26 . 38 22 2 . 44 . 27 16 Fabricators 33 | . . . . . 4 . . . . 4 . 8 . . 7 . 8 . . . . 2 . . Repair Stations 14 | . . . . . 3 . . . . . . . . . 2 . 1 . . . . 6 2 . Recycling Units 62 | . 1 . 7 . 12 . . . . 10 . 6 . . 10 . 10 . . . . 5 . 1 Scanalyzers 44 | . . . . . 2 . . . . 3 . 4 . . 17 . 7 . . . . 9 . 2 Garrison Access 29 | . . . . . 3 . . . . 3 . 2 . . 13 . 5 . . . 2 . 1 . Terminal Hacks 81 | . 2 3 . 6 2 . 1 . 3 . . 4 1 . 14 . 6 7 . . 18 . 9 5 Record 8 | . . . . 5 . . . . 3 . . . . . . . . . . . . . . . Part Schematic 7 | . . . . . 2 . . . . . . . . . 2 . 1 . . . 2 . . . Robot Analysis 1 | . . . . . . . . . . . . . . . . . . . . . 1 . . . Prototype ID Bank 6 | . . . . . . . . . . . . . . . 2 . . . . . 2 . 1 1 Open Door 10 | . . 1 . 1 . . 1 . . . . . 1 . . . 1 5 . . . . . . Branch Access Points 1 | . . . . . . . . . . . . 1 . . . . . . . . . . . . Terminal Index 2 | . 1 . . . . . . . . . . . . . . . . . . . . . 1 . Recycling Unit Index 1 | . . . . . . . . . . . . . . . . . . . . . 1 . . . Alert Level 7 | . . . . . . . . . . . . 1 . . 2 . 1 . . . 1 . 1 1 Unreport Threat 10 | . . . . . . . . . . . . 1 . . 1 . 2 2 . . 2 . 2 . Locate Traps 13 | . 1 . . . . . . . . . . 1 . . 3 . 1 . . . 3 . 2 2 Reprogram Traps 4 | . . . . . . . . . . . . . . . . . . . . . 4 . . . Patrol Status 1 | . . . . . . . . . . . . . . . 1 . . . . . . . . . Recall Extermination 2 | . . . . . . . . . . . . . . . 1 . . . . . 1 . . . Registered Components 1 | . . . . . . . . . . . . . . . 1 . . . . . . . . . Zone Layout 5 | . . . . . . . . . . . . . . . 1 . . . . . 1 . 2 1 Proto ID Catalog 1 | . . 1 . . . . . . . . . . . . . . . . . . . . . . Release Object 1 | . . 1 . . . . . . . . . . . . . . . . . . . . . . Fabricator Hacks 16 | . . . . . 1 . . . . 2 . 3 . . 3 . 5 . . . . 2 . . Network Status 3 | . . . . . 1 . . . . . . . . . . . 2 . . . . . . . Load Schematic 8 | . . . . . . . . . . 1 . 2 . . 2 . 2 . . . . 1 . . Build 5 | . . . . . . . . . . 1 . 1 . . 1 . 1 . . . . 1 . . Repair Station Hacks 9 | . . . . . 2 . . . . . . . . . 2 . . . . . . 3 2 . Scan Component 5 | . . . . . 1 . . . . . . . . . 1 . . . . . . 2 1 . Repair 4 | . . . . . 1 . . . . . . . . . 1 . . . . . . 1 1 . Recycling Unit Hacks 6 | . . . 2 . . . . . . . . 1 . . 1 . 2 . . . . . . . Report Inventory 1 | . . . . . . . . . . . . . . . . . 1 . . . . . . . Retrieve Components 5 | . . . 2 . . . . . . . . 1 . . 1 . 1 . . . . . . . Scanalyzer 30 | . . . . . 1 . . . . 3 . 2 . . 16 . 3 . . . . 4 . 1 Insert Component 19 | . . . . . 1 . . . . 3 . 2 . . 8 . 2 . . . . 2 . 1 Analyze 11 | . . . . . . . . . . . . . . . 8 . 1 . . . . 2 . . Garrison Access Hacks 12 | . . . . . 1 . . . . 3 . 1 . . 2 . 2 . . . 2 . 1 . Seal Access 12 | . . . . . 1 . . . . 3 . 1 . . 2 . 2 . . . 2 . 1 . Unauthorized Hacks 75 | . 10 . 4 . 15 . . . . 6 . 6 . . 9 . 10 1 . . 3 3 3 5 Terminals 33 | . 9 . 2 . 7 . . . . . . . . . 2 . 3 1 . . 3 . 3 3 Track 3 | . . . . . . . . . . . . . . . 1 . . . . . . . 1 1 Assimilate 5 | . 2 . . . . . . . . . . . . . . . 1 . . . 1 . 1 . Botnet 8 | . 1 . 1 . 1 . . . . . . . . . . . 1 . . . 1 . 1 2 Operators 5 | . 1 . . . 1 . . . . . . . . . 1 . . 1 . . 1 . . . Skim 12 | . 5 . 1 . 5 . . . . . . . . . . . 1 . . . . . . . Fabricators 7 | . . . . . 3 . . . . . . 2 . . 2 . . . . . . . . . Report 1 | . . . . . 1 . . . . . . . . . . . . . . . . . . . Prioritize 1 | . . . . . . . . . . . . 1 . . . . . . . . . . . . Liberate 2 | . . . . . 1 . . . . . . . . . 1 . . . . . . . . . Haulers 1 | . . . . . 1 . . . . . . . . . . . . . . . . . . . Recompile 2 | . . . . . . . . . . . . 1 . . 1 . . . . . . . . . Repair Stations 30 | . . . . . 5 . . . . 6 . 4 . . 5 . 7 . . . . 2 . 1 Patch 1 | . . . . . . . . . . . . . . . . . 1 . . . . . . . Recycling Units 3 | . 1 . 2 . . . . . . . . . . . . . . . . . . . . . Tunnel 3 | . 1 . 2 . . . . . . . . . . . . . . . . . . . . . Fedlink 27 | . . . . . 4 . . . . 6 . 4 . . 5 . 5 . . . . 2 . 1 Scrapoids 1 | . . . . . 1 . . . . . . . . . . . . . . . . . . . Scraphulk 1 | . . . . . . . . . . . . . . . . . 1 . . . . . . . Scanalyzers 2 | . . . . . . . . . . . . . . . . . . . . . . 1 . 1 Researchers 1 | . . . . . . . . . . . . . . . . . . . . . . . . 1 Extract 1 | . . . . . . . . . . . . . . . . . . . . . . 1 . . Garrison Access . | . . . . . . . . . . . . . . . . . . . . . . . . . Data Cores Recovered . | . . . . . . . . . . . . . . . . . . . . . . . . . Used . | . . . . . . . . . . . . . . . . . . . . . . . . . Hacking Detections 82 | . 8 . 2 . 15 . . . 1 4 . 5 . . 11 . 9 6 1 . 9 3 5 3 Full Trace Events 10 | . . . . . 1 . . . 1 1 . 1 . . . . 3 . . . 2 1 . . Feedback Events 2 | . . . . . . . . . . . . . . . . . 1 . . . 1 . . . Corruption 1 | . . . . . . . . . . . . . . . . . 1 . . . . . . . Hackware Fried 1 | . . . . . . . . . . . . . . . . . . . . . 1 . . . Feedback Blocked . | . . . . . . . . . . . . . . . . . . . . . . . . . Robot Schematics Acquired . | . . . . . . . . . . . . . . . . . . . . . . . . . Robots Built . | . . . . . . . . . . . . . . . . . . . . . . . . . Authchips . | . . . . . . . . . . . . . . . . . . . . . . . . . Time . | . . . . . . . . . . . . . . . . . . . . . . . . . Total Robot Build Rating . | . . . . . . . . . . . . . . . . . . . . . . . . . Part Schematics Acquired 55 | . . . . . 2 . . . . 4 1 14 2 2 12 . 2 . . . 2 14 . . Parts Built 7 | . . . . . . . . . . 2 . 1 . . 2 . 1 . . . . 1 . . Authchips 2 | . . . . . . . . . . . . . . . 1 . . . . . . 1 . . Time 210 | . . . . . . . . . . 73 . 42 . . 36 . 31 . . . . 28 . . Total Part Build Rating 22 | . . . . . . . . . . 6 . 4 . . 6 . 2 . . . . 4 . . Parts Repaired 4 | . . . . . 1 . . . . . . . . . 1 . . . . . . 1 1 . Time 208 | . . . . . 56 . . . . . . . . . 44 . . . . . . 54 54 . Parts Recycled . | . . . . . . . . . . . . . . . . . . . . . . . . . Recycled Matter . | . . . . . . . . . . . . . . . . . . . . . . . . . Retrieved Matter . | . . . . . . . . . . . . . . . . . . . . . . . . . Retrieved Components 16 | . . . 5 . . . . . . . . 3 . . 6 . 2 . . . . . . . Parts Scanalyzed 9 | . . . . . . . . . . . . . . . 6 . 2 . . . . 1 . . Part Schematics Acquired 9 | . . . . . . . . . . . . . . . 6 . 1 . . . . 2 . . Parts Damaged 2 | . . . . . . . . . . . . . . . . . 2 . . . . . . . Bothacking | -11 -10 -10 -8 -8 -6 -6 -6 -6 -5 -5 -5 -5 -5 -5 -4 -4 -4 -4 -4 -4 -4 -3 -3 -3 ------------ Run | Yrd Mat Sub Rec Scr Fac Low Low Zio Pro Fac Was Fac Upp Upp Fac Was Fac Ext Cet Arc Hub Res Qua Frg Used RIF Installer . | . . . . . . . . . . . . . . . . . . . . . . . . . Robots Hacked 25 | . . . . 3 . . . . . 1 1 1 . . 5 6 3 . . 5 . . . . Non-combat 9 | . . . . . . . . . . 1 . 1 . . 5 . 1 . . 1 . . . . Combat 9 | . . . . 3 . . . . . . 1 . . . . . 1 . . 4 . . . . Robot Hacks Applied 18 | . . . . 3 . . . . . 1 1 1 . . 5 . 2 . . 5 . . . . parse_system 10 | . . . . 3 . . . . . . 1 . . . . . 1 . . 5 . . . . find_chute 4 | . . . . . . . . . . 1 . . . . 3 . . . . . . . . . find_fabricator 1 | . . . . . . . . . . . . . . . 1 . . . . . . . . . find_recycling 3 | . . . . . . . . . . . . 1 . . 1 . 1 . . . . . . . Manual 7 | . . . . . . . . . . . . . . . . 6 1 . . . . . . . Relay Couplers Released 2 | . . . . . . . . . . 2 . . . . . . . . . . . . . . Machine Destruction 2 | . . . . . . . . . . 2 . . . . . . . . . . . . . . Fabnet Peak Effective % . | . . . . . . . . . . . . . . . . . . . . . . . . . Robots Rewired 26 | . . . . . 1 . . . . . . . . . . 4 . 21 . . . . . . Allies Hacked 2 | . . . . . 1 . . . . . . . . . . . . . . . 1 . . . Hacks Repelled 1 | . . . . . . . . . . . . . . . . . . . . . 1 . . . Allies | -11 -10 -10 -8 -8 -6 -6 -6 -6 -5 -5 -5 -5 -5 -5 -4 -4 -4 -4 -4 -4 -4 -3 -3 -3 -------- Run | Yrd Mat Sub Rec Scr Fac Low Low Zio Pro Fac Was Fac Upp Upp Fac Was Fac Ext Cet Arc Hub Res Qua Frg Total Allies 75 | . 1 . . 1 9 . . . . 1 20 . . . . 4 2 29 7 . . . 1 . Largest Group 28 | . 1 1 . 1 5 5 . . . 1 20 20 . . . 3 3 23 28 27 22 . 1 . Highest-Rated Group 1532 | . 10 10 . 59 143 143 . . . 10 780 780 . . . 412 412 1036 1532 1493 1200 . 26 . Highest-Rated Ally 159 | . 10 10 . 59 59 31 . . . 10 50 50 . . . 141 141 159 159 159 96 . 26 . Total Orders 68 | . 2 2 . . 9 9 2 . . 17 . 5 . . 5 . 1 1 3 . 10 . . 2 STAY 18 | . 1 1 . . 1 . . . . 2 . . . . . . 1 . 2 . 10 . . . ROAM 1 | . . . . . . . . . . . . . . . . . . . 1 . . . . . FOLLOW 6 | . 1 1 . . 1 . . . . 3 . . . . . . . . . . . . . . EXPLORE 12 | . . . . . 5 5 2 . . . . . . . . . . . . . . . . . RETURN 31 | . . . . . 2 4 . . . 12 . 5 . . 5 . . 1 . . . . . 2 Ally Attacks 551 | . . . . . 41 . . . . . . 91 . . . 10 31 115 57 26 180 . . . Total Damage 19933 | . . . . . 923 . . . . . . 4903 . . . 618 1537 3229 1831 776 6116 . . . Kills 107 | . . . . . 5 . . . . . . 21 . . . 1 17 15 10 5 33 . . . Allies Corrupted 4 | . . . . . . 2 . . . . . . . . . . . . . . 2 . . . Allies Melted 1 | . . . . . . . . . . . . . . . . . . . . . . . . 1 Intel | -11 -10 -10 -8 -8 -6 -6 -6 -6 -5 -5 -5 -5 -5 -5 -4 -4 -4 -4 -4 -4 -4 -3 -3 -3 ------- Run | Yrd Mat Sub Rec Scr Fac Low Low Zio Pro Fac Was Fac Upp Upp Fac Was Fac Ext Cet Arc Hub Res Qua Frg Active Infowar (turns) 27036 | 17 1133 2013 . . 2021 577 1007 1344 1405 1705 211 794 952 357 2050 237 1853 1729 635 1279 2316 1329 1131 941 Optics 1479 | . . 1478 . . . . . . . . . . . . . . . . . . . . . 1 Sensors 3 | . . . . . . . . . . . . . . . 3 . . . . . . . . . Terrain 633 | . . . . . . . . . . . . . 495 . 136 . . . . . 2 . . . Structural 8274 | . . . . . . . . . . . . 189 852 310 1458 . 1079 307 . 1113 963 536 1034 433 Traps 656 | . . . . . 655 . . . . . . 1 . . . . . . . . . . . . Seismic 15342 | 17 1133 535 . . . 575 1007 1344 1405 1705 211 609 952 357 1515 11 696 1317 635 1279 39 . . . Decoding 2 | . . . . . . 2 . . . . . . . . . . . . . . . . . . Triangulation 1944 | . . . . . 1944 . . . . . . . . . . . . . . . . . . . Cloaking 2424 | . . . . . . . . . . . . . . . 33 . . 1 . . . 1019 823 548 Jamming 13088 | . . . . . . . . . . . . . . . 1815 237 1853 1725 635 1279 2316 1164 1126 938 ECM 2 | . . . . . . . . . . . . . . . . . . . . . . . . 2 Robot Analysis Total 1 | . . . . . . . . . . . . . . . . . . . . . 1 . . . Derelict Logs Recovered 12 | . . 1 . 4 . 1 . 1 2 . . . 2 1 . . . . . . . . . . Drone Launches 37 | . . . . . 5 5 2 . . 12 . 5 . . 5 . . 1 . . . . . 2 Drone Recoveries 33 | . . . . . 3 4 1 . . 12 . 5 . . 5 . . 1 . . . . . 2 Exploration | -11 -10 -10 -8 -8 -6 -6 -6 -6 -5 -5 -5 -5 -5 -5 -4 -4 -4 -4 -4 -4 -4 -3 -3 -3 ------------- Run | Yrd Mat Sub Rec Scr Fac Low Low Zio Pro Fac Was Fac Upp Upp Fac Was Fac Ext Cet Arc Hub Res Qua Frg Turns Passed 35788 | 106 1133 2110 899 2762 3165 943 1020 1346 1485 2164 221 1687 952 357 2050 237 1853 1729 635 1279 2330 1329 1131 2865 Spaces Moved 20791 | 46 695 1250 583 1980 1310 498 489 935 1010 1100 139 962 656 189 1244 168 1196 813 371 202 1347 892 836 1880 Core 67 | 5 . . . . . . . . . . . . . . . . . . . 44 . . . 18 Treads 1555 | 30 34 . 1 . 460 496 489 41 . 2 . 2 . . . . . . . . . . . . Legs 8392 | . . . . . . . . . . . . . 597 189 1244 168 1196 813 371 158 1347 892 836 581 Wheels 10777 | 11 661 1250 582 1980 850 2 . 894 1010 1098 139 960 59 . . . . . . . . . . 1281 Hover . | . . . . . . . . . . . . . . . . . . . . . . . . . Flight . | . . . . . . . . . . . . . . . . . . . . . . . . . Fastest Speed 50 | 50 95 135 135 120 126 160 160 130 140 130 140 130 114 120 115 115 114 120 120 120 120 118 118 50 Average Speed 140 | 131 141 148 144 135 180 178 184 140 140 141 140 140 125 175 122 115 115 120 121 594 120 118 118 117 Slowest Speed 2300 | 160 240 150 312 150 240 240 240 220 140 160 140 246 190 178 186 115 188 190 190 2300 190 120 118 270 Overloaded Moves . | . . . . . . . . . . . . . . . . . . . . . . . . . Propulsion Burnouts . | . . . . . . . . . . . . . . . . . . . . . . . . . Robots Hopped . | . . . . . . . . . . . . . . . . . . . . . . . . . Potential Cave-ins 6 | . . . . . . . 2 . . . . . . . . . 2 . . . . . . 2 Cave-ins Triggered . | . . . . . . . . . . . . . . . . . . . . . . . . . Teleports 1 | . . . . . . . . . . . . . . . . . . . . . . . . 1 Exploration Rate (%) 64 | 4 81 63 75 90 49 98 86 84 99 34 78 36 77 25 35 99 37 86 66 79 77 29 85 44 Regions Visited 24 Branch Regions 15 Pre-discovered Areas 12 | . 3 . 2 1 4 . . 1 . . . . 1 . . . . . . . . . . . Known Exits Taken 8 | . 1 1 . . . . . . 1 . . 1 . 1 . . 1 . . 1 . 1 . . Unknown Exits Taken 12 | 1 . . 1 1 1 1 1 1 . . . . 1 . . . . 1 1 . 1 . 1 . Scrap Searched 30 | . . 8 . 4 . 3 3 3 5 . . . 3 1 . . . . . . . . . . Spaces Dug 484 | . 12 3 2 . 34 23 11 . 6 60 . 30 6 1 39 . 82 12 14 10 41 35 23 40 Terrain Destroyed 743 | . 12 9 2 . 93 23 16 . 7 65 . 60 6 1 75 1 149 33 14 10 42 50 26 49 Melee 339 | . . . . . 27 2 6 . . 45 . 22 6 1 33 . 50 12 14 10 37 29 22 23 Projectile 142 | . 12 9 2 . 11 3 10 . 7 20 . 2 . . 7 1 21 . . . 5 21 4 7 AOE 262 | . . . . . 55 18 . . . . . 36 . . 35 . 78 21 . . . . . 19 Terrain Rammed . | . . . . . . . . . . . . . . . . . . . . . . . . . Walls Destroyed . | . . . . . . . . . . . . . . . . . . . . . . . . . Machines Disabled . | . . . . . . . . . . . . . . . . . . . . . . . . . Actions | -11 -10 -10 -8 -8 -6 -6 -6 -6 -5 -5 -5 -5 -5 -5 -4 -4 -4 -4 -4 -4 -4 -3 -3 -3 --------- Run | Yrd Mat Sub Rec Scr Fac Low Low Zio Pro Fac Was Fac Upp Upp Fac Was Fac Ext Cet Arc Hub Res Qua Frg Total 25682 | 71 770 1402 633 2078 1847 543 566 966 1060 1493 165 1172 747 204 1613 202 1505 1424 524 264 1976 1091 953 2413 Wait 1671 | 3 18 33 27 2 164 18 33 1 12 125 16 34 36 . 78 6 57 285 81 31 454 21 22 114 Move 20769 | 45 694 1249 582 1979 1309 497 488 934 1009 1100 138 961 655 188 1244 167 1195 812 370 201 1346 891 835 1880 Hop . | . . . . . . . . . . . . . . . . . . . . . . . . . Pick Up 367 | 8 8 13 4 41 38 5 1 7 6 22 1 20 10 2 51 2 17 16 12 5 16 20 12 30 Fast Attach 154 | 7 1 7 2 . 21 3 . 4 2 11 2 5 5 2 7 . 9 11 5 3 9 9 7 22 Attach 139 | . . 3 1 10 15 3 . 2 1 9 . 12 5 . 14 . 10 8 1 1 7 11 2 24 Detach 45 | . . 1 3 5 5 3 . 1 1 1 . 2 1 . 3 . . . . 2 . 3 1 13 Swap 504 | . 18 19 5 8 38 4 6 8 2 50 3 43 10 3 58 4 54 28 3 . 43 20 15 62 Drop 359 | . 3 23 4 30 36 2 1 9 7 26 4 12 4 2 33 2 19 19 22 3 26 22 18 32 Fire 445 | 8 28 47 5 . 79 6 26 . 11 28 1 10 . . 22 20 33 11 . . 7 31 7 65 Melee 996 | . . 5 . 3 123 2 11 . 8 120 . 73 21 7 98 1 111 80 22 18 65 63 34 131 Ram . | . . . . . . . . . . . . . . . . . . . . . . . . . Kick 1 | . . . . . . . . . . . . . . . . . . 1 . . . . . . Crush 4 | . . . . . 3 . . . . 1 . . . . . . . . . . . . . . Escape Stasis 21 | . . . . . 16 . . . . . . . . . 5 . . . . . . . . . Rewire 137 | . . . . . . . . . . . . . . . . . . 137 . . . . . . Trap 2 | . . 2 . . . . . . . . . . . . . . . . . . . . . . Miscellaneous 68 | . . . . . . . . . 1 . . . . . . . . 16 8 . 3 . . 40 Route ------- -11/Scrapyard -10/Materials (discovered 5 exits: *Mat x3 / *Min / *Sub) -10/Subcaves (discovered 4 exits: [*Mat x2] / *Rec / *Scr) -8/Recycling (discovered 2 exits: *Fac / *Scr) -8/Scraptown (discovered 2 exits: *Fac x2) -6/Factory (discovered 2 exits: *Fac / [*Low]) -6/Lower Caves -6/Lower Caves (discovered 2 exits: *Fac / [*Zio]) -6/Zion -5/Proximity Caves -5/Factory (discovered 6 exits: Fac x4 / *Upp x2) -5/Waste -5/Factory (discovered 6 exits: *Fac x4 / *Upp x2) -5/Upper Caves -5/Upper Caves -4/Factory (discovered 6 exits: *Res / *Upp x2 / Ext x2 / Arm) -4/Waste -4/Factory (discovered 2 exits: *Upp / *Ext) -4/Extension (discovered 2 exits: *Res / *Cet) -4/Cetus (discovered 2 exits: *Res / [*Arc]) -4/Archives (discovered 3 exits: *Res / *Hub x2) -4/Hub_04(d) (discovered 3 exits: *Res x3) -3/Research (discovered 2 exits: Res / *Qua) -3/Quarantine (discovered 3 exits: *Res / [*Sec] / *Frg) -3/Protoforge 0bPrime History --------- Turn | Location | Event 40 | -11/Scrapyard | Discovered new exit (range 15) 107 | -11/Scrapyard | Entered Materials 294 | -10/Materials | Discovered new exit (range 12) 309 | -10/Materials | Build established: Mutant 351 | -10/Materials | Discovered new exit (range 16) 541 | -10/Materials | Discovered new exit (range 15) 679 | -10/Materials | Learned 2 Mines zone layouts 724 | -10/Materials | Learned Storage terminal intel 758 | -10/Materials | Learned location of 2 exits from Mines 795 | -10/Materials | Identified exit to Mines 795 | -10/Materials | Identified exit to Materials 802 | -10/Materials | Identified exit to Subcaves 825 | -10/Materials | Learned Storage trap positions 852 | -10/Materials | Learned location of Mines (-9) 1240 | -10/Materials | Entered Subcaves 1240 | -10/Subcaves | Accompanied by 1 ally 1241 | -10/Subcaves | Approached by a straggling Scientist 1242 | -10/Subcaves | Discovered new exit (range 10) 1334 | -10/Subcaves | Found SUBCON Basin 1451 | -10/Subcaves | Scientist uncovered a shortcut to Scraptown 1667 | -10/Subcaves | Visited 4L-MR0's lab 1687 | -10/Subcaves | Found Meta Core 1753 | -10/Subcaves | Discovered new exit (range 3) 1996 | -10/Subcaves | Shifting Twisted Machinery released Shrapnel Trap 2030 | -10/Subcaves | Core integrity fell below 50% 2072 | -10/Subcaves | Shifting Twisted Machinery released Barrage Gun 2824 | -10/Subcaves | Identified exit to Recycling 2942 | -10/Subcaves | Shifting Twisted Machinery released Sub. Beam Cannon 2971 | -10/Subcaves | Shifting Twisted Machinery released Shrapnel Trap 3350 | -10/Subcaves | Entered Recycling 3351 | -8/Recycling | Met a Zionite searching for Scraptown 3845 | -8/Recycling | Discovered new exit (range 15) 3940 | -8/Recycling | Scanned before Scraplab entrance 3959 | -8/Recycling | Entered Scraplab 4248 | -8/Recycling | Discovered new exit (range 2) 4249 | -8/Recycling | Entered Scraptown 4249 | -8/Scraptown | System corruption cleaned by C-Scrubber 4404 | -8/Scraptown | Received an X-ray algorithm 4524 | -8/Scraptown | Scanned Subdweller tech in exchange for log data 4526 | -8/Scraptown | Learned Research security intel 4528 | -8/Scraptown | Learned Factory interactive machine intel 4529 | -8/Scraptown | Learned location of Armory (-4) 4530 | -8/Scraptown | Learned 12 Research zone layouts 4552 | -8/Scraptown | Discovered new exit (range 7) 4660 | -8/Scraptown | Visited Comm Corps 4718 | -8/Scraptown | Visited The Evicted 4748 | -8/Scraptown | Visited Awakened 4833 | -8/Scraptown | Visited Assassins FH 5102 | -8/Scraptown | Visited Cyclists 5124 | -8/Scraptown | Visited Science Testing Area 5182 | -8/Scraptown | Visited UFD Registry 5182 | -8/Scraptown | Registered with UFD as "Macedome" 5212 | -8/Scraptown | Entered Cyclist Reading Room 5280 | -8/Scraptown | Visited Scrap Suit Storage 5291 | -8/Scraptown | Found Scrap Suit 5325 | -8/Scraptown | Visited Botcube Research 5334 | -8/Scraptown | Found Botcube 5564 | -8/Scraptown | Visited Junk Repository 5623 | -8/Scraptown | Visited Derelict Rescue Squad 5631 | -8/Scraptown | Found DRS Beacon 5671 | -8/Scraptown | Visited Abandonware Association 5693 | -8/Scraptown | Learned abandonware demo "REVENGE.EXE" 5693 | -8/Scraptown | Learned abandonware demo "REBOOT5.EXE" 5722 | -8/Scraptown | Visited Sword Containment 5769 | -8/Scraptown | Visited LU-1G1's Boring Crew 5814 | -8/Scraptown | Visited Modified Component R&D 6133 | -8/Scraptown | Botcube activated 6304 | -8/Scraptown | Attached Meta Core, gained temporary slots: Propulsion, Utility, Weapon 6385 | -8/Scraptown | Found Scrap Suit 6644 | -8/Scraptown | Guru changed UFD alias to "Thermobay" 6846 | -8/Scraptown | Met Optimus 6846 | -8/Scraptown | Accepted into 0bPrime 6976 | -8/Scraptown | Found Scrap Suit 6979 | -8/Scraptown | Found Scrap Suit 7003 | -8/Scraptown | Discovered new exit (range 3) 7011 | -8/Scraptown | Entered Factory 7011 | -6/Factory | Accompanied by 1 ally 7011 | -6/Factory | Evolved 8 slots: Propulsion x2, Utility x6 7012 | -6/Factory | Loaded intel: 54 interactive machine locations 7435 | -6/Factory | Garrison activated, responded to threat 7629 | -6/Factory | Lost 3 parts (1n2u) 7666 | -6/Factory | Found Botcube 7794 | -6/Factory | Spotted B-75 Beast 7844 | -6/Factory | Destroyed B-75 Beast 8327 | -6/Factory | Build established: Scavenger-Mutant 8492 | -6/Factory | Loaded intel: 8 recycling unit locations 8510 | -6/Factory | Learned location of Protoforge (-3) 8705 | -6/Factory | Discovered new exit (range 5) 8711 | -6/Factory | Identified exit to Factory 9203 | -6/Factory | Garrison activated, responded to threat 9589 | -6/Factory | Core integrity fell below 50% 9759 | -6/Factory | Garrison activated, responded to threat 9807 | -6/Factory | Discovered new exit (range 10) 9909 | -6/Factory | Learned location of Upper Caves (-4) 9970 | -6/Factory | Learned Extension trap positions 9984 | -6/Factory | Repaired Ovr. Beamcaster? 10023 | -6/Factory | Learned location of 2 exits from Archives 10064 | -6/Factory | Learned location of Zion (-6) 10095 | -6/Factory | Learned 4 Extension zone layouts 10130 | -6/Factory | Learned Hub_04(d) terminal intel 10150 | -6/Factory | Learned location of Lower Caves (-6) 10156 | -6/Factory | Scrapoids reinforcements arrived? 10161 | -6/Factory | First assault squad dispatched 10176 | -6/Factory | Entered Lower Caves 10176 | -6/Lower Caves | Accompanied by 5 allies 10235 | -6/Lower Caves | Found Scrap Suit 10241 | -6/Lower Caves | Lost 4 allies 10308 | -6/Lower Caves | Encountered a Warlord checkpoint 10535 | -6/Lower Caves | Found DCF Scrap (11 items) 10807 | -6/Lower Caves | Build established: Mutant 10899 | -6/Lower Caves | Discovered new exit (range 50) 10957 | -6/Lower Caves | Learned 4 Factory zone layouts 11119 | -6/Lower Caves | Entered another Lower Caves area 11177 | -6/Lower Caves | Discovered exit to Factory (range 6) 11191 | -6/Lower Caves | Attracted the attention of an 0b10 checkpoint 11194 | -6/Lower Caves | Core integrity fell below 20% 11486 | -6/Lower Caves | Build established: Scavenger-Mutant 11852 | -6/Lower Caves | Build established: Mutant 12120 | -6/Lower Caves | Discovered new exit (range 12) 12139 | -6/Lower Caves | Entered Zion 12203 | -6/Zion | System corruption cleaned by Quarantine Array 12241 | -6/Zion | System corruption cleaned by Quarantine Array 12345 | -6/Zion | Given the Hacking Drone Bay 12349 | -6/Zion | Found Prototype Device 12351 | -6/Zion | Discovered new exit (range 13) 12527 | -6/Zion | Build established: Scavenger-Mutant 12554 | -6/Zion | Found Unknown Hackware 12554 | -6/Zion | Identified Relay Coupler [Programmer] 12557 | -6/Zion | Identified Hacking Drone Bay 12729 | -6/Zion | Visited the Megawrench Repair Shop 12838 | -6/Zion | Learned Factory interactive machine intel 12904 | -6/Zion | Learned Factory emergency access door positions 12913 | -6/Zion | Found CR-A16's Pointy Stick 13062 | -6/Zion | Acquired unknown access codes intercepted by a Zionite 13178 | -6/Zion | Megawrench repaired 16 parts 13296 | -6/Zion | Turned away by Imprinter 13485 | -6/Zion | Entered Proximity Caves 13558 | -5/Proximity Caves | Activated DRS Beacon 13591 | -5/Proximity Caves | Attracted the attention of an 0b10 base 13654 | -5/Proximity Caves | Learned location of 1 exit from Factory 14043 | -5/Proximity Caves | Spotted B-75 Beast 14053 | -5/Proximity Caves | Destroyed B-75 Beast 14898 | -5/Proximity Caves | Discovered exit to Factory (range 9) 14970 | -5/Proximity Caves | Entered Factory 14970 | -5/Factory | Evolved 2 slots: Power x1, Propulsion x1 14971 | -5/Factory | Forged Quantum Companion 14971 | -5/Factory | Identified exit to Factory 14972 | -5/Factory | Identified exit to Upper Caves 14974 | -5/Factory | Loaded intel: 54 interactive machine locations 15041 | -5/Factory | Discovered exit to Factory (range 8) 15268 | -5/Factory | Loaded intel: 8 recycling unit locations 15961 | -5/Factory | Cargo convoy interrupted 16326 | -5/Factory | Fabricated Imp. Utility Shielding? 16557 | -5/Factory | Tech Extrapolator generated special schematic: Deep Structural Scanner 16879 | -5/Factory | System corruption reached 10% 16907 | -5/Factory | Build established: Hacker-Mutant 17134 | -5/Factory | Sucked down chute 17134 | -5/Factory | Entered Waste 17135 | -5/Waste | Joined by Warlord forces that had cleared the area 17142 | -5/Waste | Found Prototype Launcher 17276 | -5/Waste | Discovered new exit (range 12) 17355 | -5/Waste | Entered Factory 17355 | -5/Factory | Accompanied by 20 allies 17375 | -5/Factory | Discovered exit to Factory (range 13) 17474 | -5/Factory | Identified Tactical Quantum Warhead 17535 | -5/Factory | Lost 7 allies 18005 | -5/Factory | Fabricated Deep Structural Scanner? 18100 | -5/Factory | Cargo convoy interrupted 18163 | -5/Factory | Lost 11 allies 18226 | -5/Factory | Lost 4 parts (1p2u1w) 18374 | -5/Factory | Tech Extrapolator generated special schematic: Machine Rigger 18432 | -5/Factory | Loaded intel: 8 recycling unit locations 18555 | -5/Factory | First assault squad dispatched 18785 | -5/Factory | Core integrity fell below 50% 18946 | -5/Factory | Lost 5 parts (1p2n2u) 19038 | -5/Factory | Core integrity fell below 20% 19042 | -5/Factory | Entered Upper Caves 19061 | -5/Upper Caves | Lost 3 parts (1n2u) 19406 | -5/Upper Caves | Build established: Gladiator 19734 | -5/Upper Caves | Attracted the attention of an 0b10 checkpoint 19799 | -5/Upper Caves | Discovered new exit (range 19) 19888 | -5/Upper Caves | Learned Factory non-interactive machine intel 19994 | -5/Upper Caves | Entered another Upper Caves area 20042 | -5/Upper Caves | Lost 3 parts (1p1u1w) 20062 | -5/Upper Caves | Build established: Mutant 20089 | -5/Upper Caves | Discovered exit to Factory (range 10) 20188 | -5/Upper Caves | Encountered a Warlord checkpoint 20231 | -5/Upper Caves | Learned Factory non-interactive machine intel 20351 | -5/Upper Caves | Entered Factory 20351 | -4/Factory | Evolved 2 slots: Propulsion x1, Utility x1 20352 | -4/Factory | Identified exit to Extension 20353 | -4/Factory | Loaded intel: 217 non-interactive machine locations 20633 | -4/Factory | Fabricated Imp. Utility Shielding (x2) 20655 | -4/Factory | Build established: Scavenger-Mutant 20971 | -4/Factory | Loaded intel: 8 recycling unit locations 21098 | -4/Factory | Discovered new exit (range 14) 21289 | -4/Factory | Identified exit to Upper Caves 21289 | -4/Factory | Identified exit to Armory 21505 | -4/Factory | Central database locked down 21779 | -4/Factory | Build established: Hacker-Mutant 21858 | -4/Factory | Discovered new exit (range 6) 22229 | -4/Factory | Repaired Imp. Medium Armor Plating? 22401 | -4/Factory | Sucked down chute 22401 | -4/Factory | Entered Waste 22429 | -4/Waste | Spotted C-40 Crusher 22433 | -4/Waste | Rewired C-40 Crusher 22437 | -4/Waste | Spotted C-40 Crusher 22440 | -4/Waste | Rewired C-40 Crusher 22444 | -4/Waste | Spotted C-40 Crusher 22451 | -4/Waste | Rewired C-40 Crusher 22471 | -4/Waste | Spotted C-40 Crusher 22471 | -4/Waste | Spotted C-40 Crusher 22475 | -4/Waste | Rewired C-40 Crusher 22478 | -4/Waste | Allies destroyed C-40 Crusher 22496 | -4/Waste | Spotted C-40 Crusher 22508 | -4/Waste | Discovered new exit (range 16) 22532 | -4/Waste | Destroyed C-40 Crusher 22638 | -4/Waste | Entered Factory 22638 | -4/Factory | Accompanied by 3 allies 22639 | -4/Factory | Loaded intel: 230 non-interactive machine locations 22718 | -4/Factory | Loaded intel: 8 recycling unit locations 22802 | -4/Factory | Lost 3 allies 22843 | -4/Factory | Destroyed 7 combat bots 23118 | -4/Factory | Fabricated Multitool? 23224 | -4/Factory | Lost 4 parts (2n2u) 23370 | -4/Factory | Spotted B-86 Titan 23629 | -4/Factory | Discovered exit to Upper Caves (range 13) 23638 | -4/Factory | First assault squad dispatched 23823 | -4/Factory | Scraphulk reinforcements arrived 23949 | -4/Factory | Lost 3 parts (1n1u1w) 24218 | -4/Factory | Destroyed 04F01-K 24473 | -4/Factory | Build established: Scavenger-Mutant 24486 | -4/Factory | Discovered exit to Extension (range 6) 24491 | -4/Factory | Entered Extension 24493 | -4/Extension | Loaded intel: 18 trap records 24838 | -4/Extension | System corruption reached 10% 24912 | -4/Extension | Core integrity fell below 50% 24958 | -4/Extension | Lost 6 parts (2p2n2u) 24966 | -4/Extension | Rescued a captive Derelict 24967 | -4/Extension | Rescued a captive Derelict 24982 | -4/Extension | Rescued a captive Derelict 24983 | -4/Extension | Rescued a captive Derelict 25087 | -4/Extension | Build established: Hacker-Mutant 25117 | -4/Extension | Rescued A7 25328 | -4/Extension | Rescued a captive Derelict 25462 | -4/Extension | Build established: Commander-Mutant 25582 | -4/Extension | Spotted B-86 Titan 25592 | -4/Extension | Spotted B-86 Titan 25603 | -4/Extension | Revealed the true nature of CR-A16's Pointy Stick 25604 | -4/Extension | Allies destroyed B-86 Titan 25609 | -4/Extension | Destroyed B-86 Titan 25731 | -4/Extension | Rescued a captive Derelict 25780 | -4/Extension | Rescued a captive Derelict 25905 | -4/Extension | Rescued a captive Derelict 26103 | -4/Extension | Discovered new exit (range 10) 26104 | -4/Extension | Discovered new exit (range 6) 26220 | -4/Extension | Entered Cetus 26220 | -4/Cetus | Accompanied by 23 allies (A7) 26225 | -4/Cetus | Acquired a Cetus Manufacturing Module code from A7 26242 | -4/Cetus | Spotted Cetus Guard 26245 | -4/Cetus | Allies destroyed Cetus Guard 26376 | -4/Cetus | Botcube activated 26388 | -4/Cetus | Botcube completed mutation into core form, armed with 1 gun. 26418 | -4/Cetus | Murdered Mutated Botcube 26418 | -4/Cetus | Destroyed Mutated Botcube 26426 | -4/Cetus | Found Botcube 26475 | -4/Cetus | Started Cetus Manufacturing Module 26500 | -4/Cetus | Manufactured an Enhanced Grunt 26500 | -4/Cetus | Escorted A7 to Cetus Mainframe 26516 | -4/Cetus | Discovered new exit (range 16) 26525 | -4/Cetus | Manufactured an Enhanced Grunt 26550 | -4/Cetus | Manufactured an Enhanced Grunt 26555 | -4/Cetus | Spotted Cetus Guard 26555 | -4/Cetus | Spotted Cetus Guard 26555 | -4/Cetus | Spotted Cetus Guard 26557 | -4/Cetus | Allies destroyed Cetus Guard 26557 | -4/Cetus | Spotted Cetus Guard 26562 | -4/Cetus | Allies destroyed Cetus Guard 26566 | -4/Cetus | Allies destroyed Cetus Guard 26567 | -4/Cetus | Allies destroyed Cetus Guard 26572 | -4/Cetus | Discovered new exit (range 7) 26575 | -4/Cetus | Manufactured an Enhanced Grunt 26575 | -4/Cetus | Met Revision 17 26600 | -4/Cetus | Manufactured an Enhanced Grunt 26650 | -4/Cetus | Botcube activated 26666 | -4/Cetus | Botcube completed mutation into treaded form, armed with 2 guns. 26855 | -4/Cetus | Entered Archives 26855 | -4/Archives | Accompanied by 27 allies (A7) 26856 | -4/Archives | Identified exit to Hub_04(d) 26860 | -4/Archives | Received a hacking code to weaken MAIN.C 26931 | -4/Archives | Lost 4 allies 26951 | -4/Archives | Discovered new exit (range 16) 28134 | -4/Archives | Entered Hub_04(d) 28134 | -4/Hub_04(d) | Accompanied by 22 allies 28135 | -4/Hub_04(d) | Loaded intel: 15 terminal locations 28307 | -4/Hub_04(d) | Spotted B-86 Titan 28333 | -4/Hub_04(d) | Destroyed B-86 Titan 28362 | -4/Hub_04(d) | Lost 5 allies 28477 | -4/Hub_04(d) | P-70 Sage assimilated allied 8T-1AO(g) 28662 | -4/Hub_04(d) | Discovered new exit (range 11) 28678 | -4/Hub_04(d) | Adv. System Shield fried by hacking feedback 28684 | -4/Hub_04(d) | Discovered new exit (range 15) 28828 | -4/Hub_04(d) | Found Unknown Protection 28903 | -4/Hub_04(d) | Identified Hvy. Reflective Plating 28983 | -4/Hub_04(d) | Build established: Commander-Gladiator 29170 | -4/Hub_04(d) | Lost 5 allies 29384 | -4/Hub_04(d) | First assault squad dispatched 29459 | -4/Hub_04(d) | Discovered new exit (range 12) 29760 | -4/Hub_04(d) | Build established: Scavenger-Gladiator 30357 | -4/Hub_04(d) | Network Hub disabled 30358 | -4/Hub_04(d) | Spotted Lightning 30358 | -4/Hub_04(d) | Spotted Lightning 30358 | -4/Hub_04(d) | Spotted Lightning 30403 | -4/Hub_04(d) | Network Hub disabled 30423 | -4/Hub_04(d) | Spotted Lightning 30433 | -4/Hub_04(d) | Spotted Lightning 30448 | -4/Hub_04(d) | Spotted Lightning 30464 | -4/Hub_04(d) | Entered Research 30464 | -3/Research | Evolved 2 slots: Power x1, Propulsion x1 30465 | -3/Research | Identified exit to Research 30465 | -3/Research | Identified exit to Quarantine 30484 | -3/Research | Lost 3 parts (2p1u) 30664 | -3/Research | Revision forces began assault on 0b10 30770 | -3/Research | Build established: Scavenger-Mutant 30781 | -3/Research | Loaded intel: 5 recycling unit locations 31164 | -3/Research | Research terminal network offline 31316 | -3/Research | Found Exp. Thermal Shield 31574 | -3/Research | Fabricated Deep Structural Scanner? 31658 | -3/Research | Repaired Centrium Medium Armor Plating? 31793 | -3/Research | Entered Quarantine 31812 | -3/Quarantine | Cryocooling Duct disabled 31827 | -3/Quarantine | Ambient heat levels rising (+20) 31827 | -3/Quarantine | Non-combat units ordered to evacuate 31868 | -3/Quarantine | Found Fusion Bomb Launcher 31942 | -3/Quarantine | Found Prototype Device 31973 | -3/Quarantine | Identified Exp. Thermal Defense Suite 32220 | -3/Quarantine | Found Alien Artifact 32228 | -3/Quarantine | Identified Subatomic Replicator 32228 | -3/Quarantine | Forged Prototype Slashing Weapon 32436 | -3/Quarantine | Repaired Centrium Medium Armor Plating 32578 | -3/Quarantine | Discovered exit to Research (range 8) 32600 | -3/Quarantine | Found Alien Artifact 32600 | -3/Quarantine | Identified Dimensional Node Initializer 32600 | -3/Quarantine | Initialized slip node 32610 | -3/Quarantine | Found Alien Artifact 32829 | -3/Quarantine | P-80 Master assimilated allied Administrator 8a 32838 | -3/Quarantine | Spotted Fortress 32919 | -3/Quarantine | Discovered new exit (range 6) 32919 | -3/Quarantine | Discovered new exit (range 5) 32924 | -3/Quarantine | Entered Protoforge 33022 | -3/Protoforge | Spotted Hotshot 33266 | -3/Protoforge | Identified Transdimensional Reconstructor 33382 | -3/Protoforge | Spotted AP7-3 33388 | -3/Protoforge | Superfortress began startup sequence 33398 | -3/Protoforge | Destroyed AP7-3 33440 | -3/Protoforge | Lost 3 parts (1n1u1w) 33443 | -3/Protoforge | Found Prototype Energy Gun 33444 | -3/Protoforge | Identified Enh. Gamma Rifle 33449 | -3/Protoforge | Found Prototype Device 33449 | -3/Protoforge | Identified Exp. ECM Suite 33623 | -3/Protoforge | Spotted AP7-3 33662 | -3/Protoforge | Destroyed AP7-3 33716 | -3/Protoforge | Spotted Overlord 33769 | -3/Protoforge | Destroyed Overlord 33775 | -3/Protoforge | Found Prototype Device 33775 | -3/Protoforge | Identified Adv. Kinecellerator 33787 | -3/Protoforge | Lost 7 parts (2p2n2u1w) 33800 | -3/Protoforge | Spotted EXE-6 33800 | -3/Protoforge | Spotted EXE-6 33803 | -3/Protoforge | Forge Plexus network access discovered 33816 | -3/Protoforge | Destroyed EXE-6 33830 | -3/Protoforge | Destroyed EXE-6 33836 | -3/Protoforge | Spotted SKR-2 33836 | -3/Protoforge | Spotted SKR-2 33837 | -3/Protoforge | Spotted Decapitator 33837 | -3/Protoforge | Spotted Decapitator 33837 | -3/Protoforge | Spotted Decapitator 33837 | -3/Protoforge | Spotted Decapitator 33837 | -3/Protoforge | Spotted Decapitator 33841 | -3/Protoforge | Found Cep. XC Strikerail 33844 | -3/Protoforge | Destroyed Decapitator 33848 | -3/Protoforge | Spotted SKR-2 33852 | -3/Protoforge | Destroyed Decapitator 33856 | -3/Protoforge | Destroyed Decapitator 33859 | -3/Protoforge | Destroyed Decapitator 33861 | -3/Protoforge | Destroyed Decapitator 33891 | -3/Protoforge | Lost 6 parts (1p4n1u) 33895 | -3/Protoforge | Destroyed 10 combat bots 33901 | -3/Protoforge | Warped through subspace 33942 | -3/Protoforge | UFD initiated attack on Protoforge 33942 | -3/Protoforge | Loaded intel: 3 recycling unit locations 33946 | -3/Protoforge | Core integrity fell below 50% 33980 | -3/Protoforge | Optimus greeted in Protoforge 33986 | -3/Protoforge | Lost 7 parts (2p3n2u) 34000 | -3/Protoforge | Found Scrap Suit 34004 | -3/Protoforge | Lost 3 allies 34015 | -3/Protoforge | Found UFD Drillbomb 34128 | -3/Protoforge | Installed UFD Drillbomb at designated target 34128 | -3/Protoforge | UFD reported confirmed Drillbomb installation 34196 | -3/Protoforge | UFD reported confirmed Drillbomb installation 34211 | -3/Protoforge | Met 7R-MNS 34249 | -3/Protoforge | Lost 6 allies 34272 | -3/Protoforge | Found Prototype Processor 34272 | -3/Protoforge | Identified Exp. Core Analyzer 34277 | -3/Protoforge | Found Cep. XC Strikerail 34350 | -3/Protoforge | Found UFD Drillbomb 34374 | -3/Protoforge | Lost 5 allies 34403 | -3/Protoforge | Found Exp. Core Analyzer 34404 | -3/Protoforge | Spotted Executioner 34461 | -3/Protoforge | UFD reported confirmed Drillbomb installation 34470 | -3/Protoforge | Found Cep. XC Strikerail 34507 | -3/Protoforge | Spotted Striker 34513 | -3/Protoforge | Spotted Immortal 34515 | -3/Protoforge | Spotted Immortal 34520 | -3/Protoforge | Spotted Striker 34521 | -3/Protoforge | Spotted Striker 34524 | -3/Protoforge | Spotted Striker 34533 | -3/Protoforge | Spotted Striker 34542 | -3/Protoforge | Installed UFD Drillbomb at designated target 34542 | -3/Protoforge | UFD reported confirmed Drillbomb installation 34596 | -3/Protoforge | Spotted Striker 34596 | -3/Protoforge | Found UFD Drillbomb 34599 | -3/Protoforge | Lost 10 allies 34604 | -3/Protoforge | Found Cep. Antimissile System 34614 | -3/Protoforge | Found Exp. Jetlance 34624 | -3/Protoforge | Found Prototype Processor 34624 | -3/Protoforge | Identified Exp. Targeting Computer 34653 | -3/Protoforge | Installed UFD Drillbomb at designated target 34653 | -3/Protoforge | UFD reported confirmed Drillbomb installation 34710 | -3/Protoforge | Found UFD Drillbomb 34821 | -3/Protoforge | Installed UFD Drillbomb at designated target 34821 | -3/Protoforge | UFD reported confirmed Drillbomb installation 34890 | -3/Protoforge | UFD reported confirmed Drillbomb installation 34985 | -3/Protoforge | Found 0bPrime Scrap Suit 35005 | -3/Protoforge | Spotted Striker 35005 | -3/Protoforge | Spotted Striker 35044 | -3/Protoforge | Lost 3 allies 35095 | -3/Protoforge | Lost 3 allies 35140 | -3/Protoforge | Spotted Striker 35140 | -3/Protoforge | Spotted Striker 35143 | -3/Protoforge | Destroyed Striker 35196 | -3/Protoforge | Lost 3 allies 35268 | -3/Protoforge | UFD reported confirmed Drillbomb installation 35331 | -3/Protoforge | UFD reported confirmed Drillbomb installation 35348 | -3/Protoforge | Spotted Striker 35359 | -3/Protoforge | Spotted Executioner 35383 | -3/Protoforge | Lost 4 allies 35420 | -3/Protoforge | Spotted Striker 35552 | -3/Protoforge | Spotted Executioner 35615 | -3/Protoforge | Spotted Executioner 35615 | -3/Protoforge | Spotted Executioner 35619 | -3/Protoforge | Spotted Executioner 35621 | -3/Protoforge | Spotted Executioner 35664 | -3/Protoforge | Lost 5 allies 35665 | -3/Protoforge | Discovered exit to Research (range 11) 35689 | -3/Protoforge | UFD reported confirmed Drillbomb installation 35690 | -3/Protoforge | UFD began Drillbomb countdown 35781 | -3/Protoforge | Released all parts (17) 35790 | *** | Defending 0bPrime! Last Messages --------------- Superquantum Companion: "Friendo!" 35782_ 0bP_NET: Also Frameworth for that epic save with the barrage of overtuned dakka. Respect the dakka. 35783_ 0bP_NET: And S4-LTN's pet Recycler. I didn't mean it, but I was short on matter and it was a natural reflex. 35784_ 0bP_NET: Oh yeah, T-6 by the way. 35785_ 0bP_NET: LU-1G1, we know you're out there, digging away, so no moment of silence needed for you. 35785_ N-04 Retriever collects Centrium Wheel. 35786_ 0bP_NET: DD-05H though, you were a good one, we'll never forget the way you smashed your way west and just never stopped smashing. 35787_ System corrupted: Energy discharge (-30). 35787_ 0bP_NET: Well my eulogizing is soon to be interrupted by scenes of half of Protoforge collapsing in on itself. Be careful out there. 35787_ N-04 Retriever collects Exp. VSS Leg. 35787_ N-04 Retriever collects CR-A16's Behemoth Slayer. 35788_ 0bP_NET: T-2! 35788_ N-04 Retriever collects Cep. XC Strikerail. 35788_ N-04 Retriever collects Lgt. Antimatter Reactor. 35789_ 0bP_NET: And that's a wrap. Map ----- +----------------------------------------------------+ | ?????????????????????????????????????????????????? | | ?????????????????????????????????????????????????? | | ???????????????????????????????" " ???????????? | | ????????????????????????????? "" " ""?????????? | | ??????????????????????????" % """""??????? | | ???????????????????????? [= """""""????? | | ?????????????????????? !!% """""""""??? | | ?????????????????????? " %! [""""""""""?? | | ?????????????????????# " " =="""""""""""" | | ?????????????????????# " "" "% %*=!!"""""""""""" | | ?????????????????????# "" =!%%="""""""""""" | | ?????????????????????# % !!![[=""""""""""" | | ?????????????????????# % %%%=%=""""""""""" | | ?????????????????????# % """""% %b %!!*""""""""""" | | ?????????????????????# """ " "%%[!"""""""""" | | ###########??????????# % " %%[! """"""""" | | ###########??????????#=! % "! % """""""" | | ###########??????????# %"" " %"" """"""" | | ###########??????????# "" "" " """""" | | # ####??????????# "" % """ """"" | | # """" ####??????????# % %% "" | | # """" ####??????????# """ | | # """" #######???????# % % " """"" | | " "" #######??###### n % !! | | # ############### =![%!%/ % % | | "###"###[[###"####m###% @ % %%%**!% "%"% """ | | %!*!![% % %% SS Em %SS !==!=* " "["" | | % !!![!%* %% SS nSS SS %===!]" | | =!!*!!!*/%% % %SS % !%!" " = | | ""#"T#####!*;#;;;# ### % %!= | | "##""### = ######## % | | ####### "" ######## | | ####### "" " #####??# % | | +% ! %+ " # ###### % | | #### ## !" " ######## " " " " | | #### ## ######## % | | "### #####""################% ################### | | "### ##### #####???####?????????????????? | | #"## ####" #####????????????????????????? | | # + #####????????????????????????? | | %# " #####????????????????????????? | | " ####+##########????????????????????????? | | + #########?????????????????????????? | | ## "#######+#########?????????????????????????? | | ## = ######## #####?????????????????????????? | | ##=% ######## "" ####??????????????????????????? | | ## ######## """####??????????????????????????? | | " # S"####??????????????????????????? | | # # """####??????????????????????????? | | # """ # """####??????????????????????????? | +----------------------------------------------------+ Best States ------------- Heat Dissipation 116 Coolant Potential 80 Energy Generation 71 Energy Capacity 1900 Matter Stores 300 Matter Capacity 300 Sight Range 21 Terrain Scan Range 20 Terrain Scan Density 10 ECM Strength 3 Jamming Range 16 Cloak Strength 3 Base Temperature (-) 150 Corruption Block 20 Armor Coverage 455 Resistance: TH 30 Power Shielding 33 Utility Shielding 66 Point Defense Rating 480 Melee Speed Boost 30 Evasion (%) 82 Targeting Accuracy 20 Melee Accuracy 8 Target Analysis 8 Core Analysis 8 Recoil Reduction 6 Kinecelleration 50 Offensive Hacking 14 Defensive Hacking 14 Authchip Count 2 Item Schematics ----------------- Imp. Utility Shielding | -6/Factory | Hacked Matter Neutralizer | -6/Factory | Hacked Deep Structural Scanner | -5/Factory | Extrapolated Mak. Coolant Network | -5/Factory | Extrapolated Mak. Hacking Suite | -5/Factory | Extrapolated Mak. System Shield | -5/Factory | Extrapolated Hvy. Battle Rifle | -5/Waste | Extrapolated Multitool | -5/Factory | Extrapolated Mak. Terrain Scanner | -5/Factory | Extrapolated Mak. Transmission Jammer | -5/Factory | Extrapolated Mak. Medium Armor Plating | -5/Factory | Extrapolated Mak. Ablative Armor | -5/Factory | Extrapolated Mak. Power Source | -5/Factory | Extrapolated Mak. System Restoration Module | -5/Factory | Extrapolated Mak. Flight Unit | -5/Factory | Extrapolated Humpback | -5/Factory | Extrapolated 0b10 Decoder Chip [Scout] | -5/Factory | Extrapolated Machine Rigger | -5/Factory | Extrapolated Beamcaster | -5/Factory | Extrapolated Ripper | -5/Factory | Extrapolated Mak. Salvage Targeting Computer | -5/Factory | Extrapolated Hvy. Beamcaster | -5/Upper Caves | Extrapolated Lgt. Humpback | -5/Upper Caves | Extrapolated Mak. Light Armor Plating | -5/Upper Caves | Extrapolated Arc Thrower | -5/Upper Caves | Extrapolated 0b10 Decoder Chip [Generic] | -4/Factory | Extrapolated 0b10 Decoder Chip [Skirmisher] | -4/Factory | Extrapolated Mak. Power Shielding | -4/Factory | Extrapolated Core Analyzer | -4/Factory | Scanalyzed Mak. Trap Scanner | -4/Factory | Extrapolated Nanoactuators | -4/Factory | Hacked Hvy. Antimatter Reactor | -4/Factory | Scanalyzed Adv. Reaction Control System | -4/Factory | Scanalyzed Tactical Coordination Suite | -4/Factory | Scanalyzed Hcp. Storage Unit | -4/Factory | Scanalyzed Graphene Brace | -4/Factory | Scanalyzed Adv. Cloaking Device | -4/Factory | Hacked Exp. Gyrokinetic Inverter | -4/Factory | Scanalyzed Hvy. Shield Leg | -4/Factory | Hacked Exp. Utility Shielding | -4/Hub_04(d) | Hacked Adv. Melee Analysis Suite | -4/Hub_04(d) | Hacked Exp. Reaction Control System | -3/Research | Scanalyzed Centrium Medium Armor Plating | -3/Research | Scanalyzed Mic. Antimatter Reactor | -3/Research | Extracted Imp. Fusion Compressor | -3/Research | Extracted Field Propulsion Array | -3/Research | Extracted Adv. Recalibrator | -3/Research | Extracted Arm. Medium Treads | -3/Research | Extracted Remote Force Field | -3/Research | Extracted Adv. ECM Suite | -3/Research | Extracted Dispersion Rifle | -3/Research | Extracted Fusion Compressor | -3/Research | Extracted Adv. Cryofiber Web | -3/Research | Extracted Imp. Shield Generator | -3/Research | Extracted Q-thruster | -3/Research | Extracted Robot Schematics ------------------ None Fabricated ------------ Imp. Utility Shielding | x2 | -5/Factory Deep Structural Scanner | x1 | -5/Factory Imp. Utility Shielding | x2 | -4/Factory | Authchip Multitool | x1 | -4/Factory Deep Structural Scanner | x1 | -3/Research | Authchip Repaired ---------- Ovr. Beamcaster | 21% | -6/Factory Imp. Medium Armor Plating | 11% | -4/Factory Centrium Medium Armor Plating | 31% | -3/Research Centrium Medium Armor Plating | 64% | -3/Quarantine Alien Tech Used ----------------- Subatomic Replicator Dimensional Node Initializer Transdimensional Reconstructor Achievements -------------- None Challenges ------------ None Game ------ Seed GravmagSpacefoldPlatform Manual? 0 Play Time 08:27:00 Cumulative 802.3 hours Start 2025.05.06 @ 05:08:52 End 2025.05.07 @ 05:34:54 Sessions 7 Manual Loads 0 Difficulty Rogue Special Mode None Game No. 157 Rogue 157 Adventurer 0 Explorer 0 Win Type 9 Total 47 Types 22/4/6/1/2/1/6/2/2/1 Lore% 82 Gallery% 86 Achievement% 91 Wizard Run 0 Options --------- Layout 0 ASCII 0 Keyboard 0 Movement Numpad Keybinds 0 Fullscreen 1 Font 18/SmallcapsGlow Map View 76x50 Zoom Use 0% Tactical HUD 1 Map Filters NONE Filters NONE Steam 1 RUN: fe564549-952d-4102-9500-05164fed0689